Workbook

Sheet INTRO
B1: STORMWATER BEST MANAGEMENT PRACTICE DESIGN WORKBOOK | S1: Worksheet Protected
S2: Workbook Protected
B4: UD-BMP (Version 3.07, March 2018)
B5: Urban Drainage and Flood Control District
B6: Denver, Colorado
B7: www.udfcd.org
B9: Purpose: | C9: This workbook is to be used as a design aid in the preliminary stages of BMP design.
B11: Function: | C11: To provide the designer with built-in tools to incorporate established criteria and
C12: sizing into the preliminary design.
B14: Content: | C14: The workbook consists of the following 12 design-aid worksheets:
B16: Deciderator | C16: BMP Selection Tool
B18: Runoff Reduction | C18: Quantifying Runoff Reduction for Unconnected Impervious Area (UIA) across Receiving Pervious Area (RPA)
B20: GB | C20: Grass Buffer
B22: GS | C22: Grass Swale
B24: RG | C24: Rain Garden
B26: SF | C26: Sand Filter
B28: EDB | C28: Extended Detention Basin
B30: RP | C30: Retention Pond
B32: CWP | C32: Constructed Wetland Pond
B34: CWC | C34: Constructed Wetland Channel
B36: PPS | C36: Permeable Pavement Systems
B38: MAP | C38: Mean Storm Depth Map
B40: Comments? | C40: Direct all comments regarding this workbook to: | H40: UDFCD E-Mail
B41: Revisions? | C41: Check for revised versions of this or any other workbook at: | H41: www.udfcd.org

Sheet IRF (hidden)
S1: Worksheet Protected | BD1: C | BE1: V
B2: Site-Level Low Impact Development (LID) Design Effective Impervious Calculator LID Credit by Impervious Reduction Factor (IRF) Method
B3: =INTRO!B4 -> UD-BMP (Version 3.07, March 2018)
C4: User Input
C6: Calculated cells | H6: Designer:
H7: Company:
B8: ***Design Storm: 1-Hour Rain Depth | C8: WQCV Event | E8: 0.6 | F8: inches | H8: Date: | I8: =TODAY() -> 2018-04-16
B9: ***Minor Storm: 1-Hour Rain Depth | C9: 10-Year Event | E9: 1.6 | F9: inches | H9: Project:
B10: ***Major Storm: 1-Hour Rain Depth | C10: 100-Year Event | E10: 2.6 | F10: inches | H10: Location:
B11: Optional User Defined Storm | C11: CUHP
B12: =IF(C11="CUHP","(CUHP) NOAA 1 Hour Rainfall Depth and Frequency for User Defined Storm",IF(C11="NRCS Method","(NRCS Type II Method) 24-Hour Storm Event and Rainfall Depth for User Defined Storm","")) -> (CUHP) NOAA 1 Hour Rainfall Depth and Frequency for User Defined Storm | C12: 100-Year Event | E12: 2.31 | F12: =IF(E12="","",IF(OR(AND(C11="CUHP",E12<0.95,OR(C12="2-Year Event",C12="5-Year Event",C12="10-Year Event")),AND(C11="CUHP",E12<2,OR(C12="25-Year Event",C12="50-Year Event",C12="100-Year Event"))),"The rainfall depth entered for the user defined storm is BELOW the range analyzed. IRFs for the user defined storm as entered cannot be calculated within this spreadsheet.",IF(OR(AND(C11="CUHP",E12>2,OR(C12="2-Year Event",C12="5-Year Event",C12="10-Year Event")),AND(C11="CUHP",E12>3,OR(C12="25-Year Event",C12="50-Year Event",C12="100-Year Event")),AND(C11="NRCS Method",E12>3,C12<>"")),"The rainfall depth entered for the user defined storm is ABOVE the range analyzed. IRF values provided for the user defined storm may be CONSERVATIVE.",IF(AND(C11="NRCS Method",E12<0.5,C12<>""),"Minimum rainfall depth is 0.5 inches.","")))) -> 
B14: Max Intensity for Optional User Defined Storm | C14: =IF(C11="CUHP",BE189,BS179) -> 2.30538
B16: SITE INFORMATION (USER-INPUT) | U16: Table 3-3. Infiltration Rates (f) for IRF Calculations1
C17: Sub-basin Identifier | E17: 1 | U17: Soil Type | V17: Hydrologic Soil Group | W17: WQCV Event | X17: Minor Storm Event | Y17: Major Storm Event | Z17: Optional User Defined Event
C18: Receiving Pervious Area Soil Type | E18: Loam
C19: Total Area (ac., Sum of DCIA, UIA, RPA, & SPA) | E19: 1 | W19: (in/hr) | X19: (in/hr) | Y19: (in/hr) | Z19: (in/hr)
C20: Directly Connected Impervious Area (DCIA, acres) | E20: 0.25 | U20: Clay | V20: D | W20: 0.12 | X20: =VLOOKUP(IRF_DEPTH_2,$CH$259:$CI$280,2,TRUE)/2 -> 0.22418 | Y20: =VLOOKUP(IRF_DEPTH_3,$CH$287:$CI$307,2,TRUE)/2 -> 0.22628 | Z20: =IF(C11="NRCS Method",VLOOKUP($E$12,$CH$201:$CI$251,2,TRUE)/24,IF(OR($C$12="2-Year Event",$C$12="5-Year Event",$C$12="10-Year Event"),VLOOKUP($E$12,$CH$259:$CI$280,2,TRUE)/2,IF(OR($C$12="25-Year Event",$C$12="50-Year Event",$C$12="100-Year Event",$C$12="500-Year Event"),VLOOKUP($E$12,$CH$287:$CI$307,2,TRUE)/2))) -> 0.22604
C21: Unconnected Impervious Area (UIA, acres) | E21: 0.25 | U21: Sandy Clay | V21: D | W21: 0.16 | X21: =VLOOKUP(IRF_DEPTH_2,$BP$259:$BQ$280,2,TRUE)/2 -> 0.24607 | Y21: =VLOOKUP(IRF_DEPTH_3,$BP$287:$BQ$307,2,TRUE)/2 -> 0.28902 | Z21: =IF(C12="NRCS Method",VLOOKUP($E$12,$BP$201:$BQ$251,2,TRUE)/24,IF(OR($C$12="2-Year Event",$C$12="5-Year Event",$C$12="10-Year Event"),VLOOKUP($E$12,$BP$259:$BQ$280,2,TRUE)/2,IF(OR($C$12="25-Year Event",$C$12="50-Year Event",$C$12="100-Year Event",$C$12="500-Year Event"),VLOOKUP($E$12,$BP$287:$BQ$307,2,TRUE)/2))) -> 0.2865
C22: Receiving Pervious Area (RPA, acres) | E22: 0.25 | U22: Silty Clay | V22: D | W22: 0.18 | X22: =VLOOKUP(IRF_DEPTH_2,$CB$259:$CC$280,2,TRUE)/2 -> 0.28965 | Y22: =VLOOKUP(IRF_DEPTH_3,$CB$287:$CC$307,2,TRUE)/2 -> 0.29117 | Z22: =IF(C13="NRCS Method",VLOOKUP($E$12,$CB$201:$CC$251,2,TRUE)/24,IF(OR($C$12="2-Year Event",$C$12="5-Year Event",$C$12="10-Year Event"),VLOOKUP($E$12,$CB$259:$CC$280,2,TRUE)/2,IF(OR($C$12="25-Year Event",$C$12="50-Year Event",$C$12="100-Year Event",$C$12="500-Year Event"),VLOOKUP($E$12,$CB$287:$CC$307,2,TRUE)/2))) -> 0.289
C23: Separate Pervious Area (SPA, acres) | E23: 0.25 | U23: Clay Loam | V23: D | W23: 0.26 | X23: =VLOOKUP(IRF_DEPTH_2,$BD$259:$BE$280,2,TRUE)/2 -> 0.292246 | Y23: =VLOOKUP(IRF_DEPTH_3,$BD$287:$BE$307,2,TRUE)/2 -> 0.29393 | Z23: =IF(C14="NRCS Method",VLOOKUP($E$12,$BD$201:$BE$251,2,TRUE)/24,IF(OR($C$12="2-Year Event",$C$12="5-Year Event",$C$12="10-Year Event"),VLOOKUP($E$12,$BD$259:$BE$280,2,TRUE)/2,IF(OR($C$12="25-Year Event",$C$12="50-Year Event",$C$12="100-Year Event",$C$12="500-Year Event"),VLOOKUP($E$12,$BD$287:$BE$307,2,TRUE)/2))) -> 0.2915
B24: RPA Treatment Type: Conveyance (C), Volume (V), or Permeable Pavement (PP) | E24: C | U24: Silty Clay Loam | V24: D | W24: 0.27 | X24: =VLOOKUP(IRF_DEPTH_2,$CE$259:$CF$280,2,TRUE)/2 -> 0.39963 | Y24: =VLOOKUP(IRF_DEPTH_3,$CE$287:$CF$307,2,TRUE)/2 -> 0.399 | Z24: =IF(C15="NRCS Method",VLOOKUP($E$12,$CE$201:$CF$251,2,TRUE)/24,IF(OR($C$12="2-Year Event",$C$12="5-Year Event",$C$12="10-Year Event"),VLOOKUP($E$12,$CE$259:$CF$280,2,TRUE)/2,IF(OR($C$12="25-Year Event",$C$12="50-Year Event",$C$12="100-Year Event",$C$12="500-Year Event"),VLOOKUP($E$12,$CE$287:$CF$307,2,TRUE)/2))) -> 0.393265
E25: =IF(COUNTA(E17:E24)=0,"",IF(AND(COUNTA(E17:E24)=8,COUNTA($E$8:$E$12)>=1),"","MISSING INPUT")) ->  | F25: =IF(COUNTA(F17:F24)=0,"",IF(AND(COUNTA(F17:F24)=8,COUNTA($E$8:$E$12)>=1),"","MISSING INPUT")) ->  | U25: Sandy Clay Loam | V25: D | W25: 0.34 | X25: =VLOOKUP(IRF_DEPTH_2,$BS$259:$BT$280,2,TRUE)/2 -> 0.38 | Y25: =VLOOKUP(IRF_DEPTH_3,$BS$287:$BT$307,2,TRUE)/2 -> 0.3805 | Z25: =IF(C16="NRCS Method",VLOOKUP($E$12,$BS$201:$BT$251,2,TRUE)/24,IF(OR($C$12="2-Year Event",$C$12="5-Year Event",$C$12="10-Year Event"),VLOOKUP($E$12,$BS$259:$BT$280,2,TRUE)/2,IF(OR($C$12="25-Year Event",$C$12="50-Year Event",$C$12="100-Year Event",$C$12="500-Year Event"),VLOOKUP($E$12,$BS$287:$BT$307,2,TRUE)/2))) -> 0.379895
U26: Loam | V26: C | W26: 0.43 | X26: =VLOOKUP(IRF_DEPTH_2,$BG$259:$BH$280,2,TRUE)/2 -> 0.47648 | Y26: =VLOOKUP(IRF_DEPTH_3,$BG$287:$BH$307,2,TRUE)/2 -> 0.47315 | Z26: =IF(C17="NRCS Method",VLOOKUP($E$12,$BG$201:$BH$251,2,TRUE)/24,IF(OR($C$12="2-Year Event",$C$12="5-Year Event",$C$12="10-Year Event"),VLOOKUP($E$12,$BG$259:$BH$280,2,TRUE)/2,IF(OR($C$12="25-Year Event",$C$12="50-Year Event",$C$12="100-Year Event",$C$12="500-Year Event"),VLOOKUP($E$12,$BG$287:$BH$307,2,TRUE)/2))) -> 0.465065
B27: CALCULATED RESULTS (OUTPUT) | U27: Silt Loam | V27: C | W27: 0.83 | X27: =VLOOKUP(IRF_DEPTH_2,$BY$259:$BZ$280,2,TRUE)/2 -> 0.67022 | Y27: =VLOOKUP(IRF_DEPTH_3,$BY$287:$BZ$307,2,TRUE)/2 -> 0.76352 | Z27: =IF(C18="NRCS Method",VLOOKUP($E$12,$BY$201:$BZ$251,2,TRUE)/24,IF(OR($C$12="2-Year Event",$C$12="5-Year Event",$C$12="10-Year Event"),VLOOKUP($E$12,$BY$259:$BZ$280,2,TRUE)/2,IF(OR($C$12="25-Year Event",$C$12="50-Year Event",$C$12="100-Year Event",$C$12="500-Year Event"),VLOOKUP($E$12,$BY$287:$BZ$307,2,TRUE)/2))) -> 0.73916
C28: Total Calculated Area (ac, check against input) | E28: =IF(OR(E24="",E25="MISSING INPUT"),"",IF(E20+E21+E23+E22=E19,E20+E21+E23+E22,"MATH!")) -> 1 | F28: =IF(OR(F24="",F25="MISSING INPUT"),"",IF(F20+F21+F23+F22=F19,F20+F21+F23+F22,"MATH!")) ->  | G28: =IF(OR(G24="",G25="MISSING INPUT"),"",IF(G20+G21+G23+G22=G19,G20+G21+G23+G22,"MATH!")) ->  | H28: =IF(OR(H24="",H25="MISSING INPUT"),"",IF(H20+H21+H23+H22=H19,H20+H21+H23+H22,"MATH!")) ->  | I28: =IF(OR(I24="",I25="MISSING INPUT"),"",IF(I20+I21+I23+I22=I19,I20+I21+I23+I22,"MATH!")) ->  | U28: Sandy Loam | V28: C | W28: 1.04 | X28: =VLOOKUP(IRF_DEPTH_2,$BV$259:$BW$280,2,TRUE)/2 -> 0.67041 | Y28: =VLOOKUP(IRF_DEPTH_3,$BV$287:$BW$307,2,TRUE)/2 -> 0.78398 | Z28: =IF(C19="NRCS Method",VLOOKUP($E$12,$BV$201:$BW$251,2,TRUE)/24,IF(OR($C$12="2-Year Event",$C$12="5-Year Event",$C$12="10-Year Event"),VLOOKUP($E$12,$BV$259:$BW$280,2,TRUE)/2,IF(OR($C$12="25-Year Event",$C$12="50-Year Event",$C$12="100-Year Event",$C$12="500-Year Event"),VLOOKUP($E$12,$BV$287:$BW$307,2,TRUE)/2))) -> 0.75962
C29: Directly Connected Impervious Area (DCIA, %) | E29: =IF(ISNUMBER(E28),IF(OR(E24="",E25="MISSING INPUT"),"",E20/E$28),"") -> 0.25 | F29: =IF(ISNUMBER(F28),IF(OR(F24="",F25="MISSING INPUT"),"",F20/F$28),"") ->  | G29: =IF(ISNUMBER(G28),IF(OR(G24="",G25="MISSING INPUT"),"",G20/G$28),"") ->  | H29: =IF(ISNUMBER(H28),IF(OR(H24="",H25="MISSING INPUT"),"",H20/H$28),"") ->  | I29: =IF(ISNUMBER(I28),IF(OR(I24="",I25="MISSING INPUT"),"",I20/I$28),"") ->  | U29: Loamy Sand | V29: B | W29: 1.92 | X29: =VLOOKUP(IRF_DEPTH_2,$BJ$259:$BK$280,2,TRUE)/2 -> 0.70013 | Y29: =VLOOKUP(IRF_DEPTH_3,$BJ$287:$BK$307,2,TRUE)/2 -> 1.00286 | Z29: =IF(C20="NRCS Method",VLOOKUP($E$12,$BJ$201:$BK$251,2,TRUE)/24,IF(OR($C$12="2-Year Event",$C$12="5-Year Event",$C$12="10-Year Event"),VLOOKUP($E$12,$BJ$259:$BK$280,2,TRUE)/2,IF(OR($C$12="25-Year Event",$C$12="50-Year Event",$C$12="100-Year Event",$C$12="500-Year Event"),VLOOKUP($E$12,$BJ$287:$BK$307,2,TRUE)/2))) -> 0.88407
C30: Unconnected Impervious Area (UIA, %) | E30: =IF(ISNUMBER(E28),IF(OR(E24="",E25="MISSING INPUT"),"",E21/E$28),"") -> 0.25 | F30: =IF(ISNUMBER(F28),IF(OR(F24="",F25="MISSING INPUT"),"",F21/F$28),"") ->  | G30: =IF(ISNUMBER(G28),IF(OR(G24="",G25="MISSING INPUT"),"",G21/G$28),"") ->  | H30: =IF(ISNUMBER(H28),IF(OR(H24="",H25="MISSING INPUT"),"",H21/H$28),"") ->  | I30: =IF(ISNUMBER(I28),IF(OR(I24="",I25="MISSING INPUT"),"",I21/I$28),"") ->  | U30: Sand | V30: A | W30: 5.85 | X30: =VLOOKUP(IRF_DEPTH_2,$BM$259:$BN$280,2,TRUE)/2 -> 0.9262 | Y30: =VLOOKUP(IRF_DEPTH_3,$BM$287:$BN$307,2,TRUE)/2 -> 1.5022 | Z30: =IF(C21="NRCS Method",VLOOKUP($E$12,$BM$201:$BN$251,2,TRUE)/24,IF(OR($C$12="2-Year Event",$C$12="5-Year Event",$C$12="10-Year Event"),VLOOKUP($E$12,$BM$259:$BN$280,2,TRUE)/2,IF(OR($C$12="25-Year Event",$C$12="50-Year Event",$C$12="100-Year Event",$C$12="500-Year Event"),VLOOKUP($E$12,$BM$287:$BN$307,2,TRUE)/2))) -> 1.328845
C31: Receiving Pervious Area (RPA, %) | E31: =IF(ISNUMBER(E28),IF(OR(E24="",E25="MISSING INPUT"),"",E22/E$28),"") -> 0.25 | F31: =IF(ISNUMBER(F28),IF(OR(F24="",F25="MISSING INPUT"),"",F22/F$28),"") ->  | G31: =IF(ISNUMBER(G28),IF(OR(G24="",G25="MISSING INPUT"),"",G22/G$28),"") ->  | H31: =IF(ISNUMBER(H28),IF(OR(H24="",H25="MISSING INPUT"),"",H22/H$28),"") ->  | I31: =IF(ISNUMBER(I28),IF(OR(I24="",I25="MISSING INPUT"),"",I22/I$28),"") ->  | U31: 1Infiltration Rates are based on the Green-Ampt method and are calculated as the average infiltration rate over the duration of the storm.
C32: Separate Pervious Area (SPA, %) | E32: =IF(ISNUMBER(E28),IF(OR(E24="",E25="MISSING INPUT"),"",E23/E$28),"") -> 0.25 | F32: =IF(ISNUMBER(F28),IF(OR(F24="",F25="MISSING INPUT"),"",F23/F$28),"") ->  | G32: =IF(ISNUMBER(G28),IF(OR(G24="",G25="MISSING INPUT"),"",G23/G$28),"") ->  | H32: =IF(ISNUMBER(H28),IF(OR(H24="",H25="MISSING INPUT"),"",H23/H$28),"") ->  | I32: =IF(ISNUMBER(I28),IF(OR(I24="",I25="MISSING INPUT"),"",I23/I$28),"") -> 
C33: AR (RPA / UIA) | E33: =IF(ISNUMBER(E28),IF(OR(E24="",E25="MISSING INPUT"),"",IF(E$31=0,0,IF(E$30=0,0,E31/E30))),"") -> 1
C34: Ia Check | E34: =IF(ISNUMBER(E28),IF(OR(E24="",E25="MISSING INPUT"),"",ROUND(1/(1+E33),2)),"") -> 0.5
C35: ="f / I for "&C8&":" -> f / I for WQCV Event: | E35: =IF(ISNUMBER(E28),IF($E$8="","",IF(E25="MISSING INPUT","",IF(E$28="","",VLOOKUP(E18,Infiltration_Rate_Table,3,FALSE)/IRF_DEPTH_1))),"") -> 0.7166666667 | F35: =IF(ISNUMBER(F28),IF($E$8="","",IF(F25="MISSING INPUT","",IF(F$28="","",VLOOKUP(F18,Infiltration_Rate_Table,3,FALSE)/IRF_DEPTH_1))),"") -> 
C36: ="f / I for "&C9&":" -> f / I for 10-Year Event: | E36: =IF(ISNUMBER(E28),IF($E$9="","",IF(E25="MISSING INPUT","",VLOOKUP(E18,Infiltration_Rate_Table,4,FALSE)/$AT$181)),"") -> 0.3294247788
C37: ="f / I for "&C10&":" -> f / I for 100-Year Event: | E37: =IF(ISNUMBER(E28),IF($E$10="","",IF(E25="MISSING INPUT","",VLOOKUP(E18,Infiltration_Rate_Table,5,FALSE)/$AV$181)),"") -> 0.1823454602
C38: ="f / I for "&B11&" "&C11&":" -> f / I for Optional User Defined Storm CUHP: | E38: =IF(ISNUMBER(E28),IF($E$12="","",IF(E25="MISSING INPUT","",VLOOKUP(E18,Infiltration_Rate_Table,6,FALSE)/$C$14)),"") -> 0.2017303004
C39: ="IRF for "&C8&":" -> IRF for WQCV Event: | E39: =IF(ISNUMBER(E28),IF($E$8="","",IF(E25="MISSING INPUT","",IF(OR(E24="V",E24="PP"),0,IF(BE74<0,0,IF(BE74>1,1,BE74))))),"") -> 0.8424267106
C40: ="IRF for "&C9&":" -> IRF for 10-Year Event: | E40: =IF(ISNUMBER(E28),IF($E$9="","",IF(E25="MISSING INPUT","",IF(E24="C",IF(BE75<0,0,IF(BE75>1,1,BE75)),IF(BE96<0,0,IF(BE96>1,1,BE96))))),"") -> 0.9267471537 | F40: =IF(ISNUMBER(F28),IF($E$9="","",IF(F25="MISSING INPUT","",IF(F24="C",IF(BF75<0,0,IF(BF75>1,1,BF75)),IF(BF96<0,0,IF(BF96>1,1,BF96))))),"") -> 
C41: ="IRF for "&C10&":" -> IRF for 100-Year Event: | E41: =IF(ISNUMBER(E28),IF($E$10="","",IF(E25="MISSING INPUT","",IF(E24="C",IF(BE76<0,0,IF(BE76>1,1,BE76)),IF(BE99<0,0,IF(BE99>1,1,BE99))))),"") -> 0.9637030502 | F41: =IF(ISNUMBER(F28),IF($E$10="","",IF(F25="MISSING INPUT","",IF(F24="C",IF(BF76<0,0,IF(BF76>1,1,BF76)),IF(BF99<0,0,IF(BF99>1,1,BF99))))),"") -> 
C42: ="IRF for "&B11&" "&C11&":" -> IRF for Optional User Defined Storm CUHP: | E42: =IF(ISNUMBER(E28),IF($E$12="","",IF(E25="MISSING INPUT","",IF(E24="C",IF(BE77<0,0,IF(BE77>1,1,BE77)),IF(BE102<0,0,IF(BE102>1,1,BE102))))),"") -> 0.9586470805 | F42: =IF(ISNUMBER(F28),IF($E$12="","",IF(F25="MISSING INPUT","",IF(F24="C",IF(BF77<0,0,IF(BF77>1,1,BF77)),IF(BF102<0,0,IF(BF102>1,1,BF102))))),"") -> 
C43: Total Site Imperviousness: Itotal | E43: =IF(ISNUMBER(E28),IF(E25="MISSING INPUT","",IF(E24="PP",(E29+E30+E31*0.4)/(E29+E30+E32+E31),(E29+E30)/(E29+E30+E32+E31))),"") -> 0.5
C44: ="Effective Imperviousness for "&C8&":" -> Effective Imperviousness for WQCV Event: | E44: =IF(ISNUMBER(E28),IF($E$8="","",IF(E25="MISSING INPUT","",E29+E39*E30)),"") -> 0.4606066777
C45: ="Effective Imperviousness for "&C9&":" -> Effective Imperviousness for 10-Year Event: | E45: =IF(ISNUMBER(E28),IF($E$9="","",IF(E25="MISSING INPUT","",E29+E40*E30)),"") -> 0.4816867884
C46: ="Effective Imperviousness for "&C10&":" -> Effective Imperviousness for 100-Year Event: | E46: =IF(ISNUMBER(E28),IF($E$10="","",IF(E25="MISSING INPUT","",E29+E41*E30)),"") -> 0.4909257625
B47: ="Effective Imperviousness for "&B11&" "&C11&":" -> Effective Imperviousness for Optional User Defined Storm CUHP: | E47: =IF(ISNUMBER(E28),IF($E$12="","",IF(E25="MISSING INPUT","",E29+E42*E30)),"") -> 0.4896617701
B49: LID / EFFECTIVE IMPERVIOUSNESS CREDITS
C50: =IF(C8<>"WQCV Event","This line only for WQCV Event",C8&" CREDIT: Reduce Detention By:") -> WQCV Event CREDIT: Reduce Detention By: | E50: =IF($E$8="","",IF(E25="MISSING INPUT","",IF($C$8<>"WQCV Event","N/A",IF(E24="C",IF(E43="","N/A",IF(E43=0,"N/A",((0.91*E43^3-1.19*E43^2+0.78*E43)-(0.91*E44^3-1.19*E44^2+0.78*E44))/(0.91*E43^3-1.19*E43^2+0.78*E43))),"N/A")))) -> 0.05099994878 | F50: N/A | G50: N/A | H50: N/A | I50: N/A | J50: N/A | K50: N/A | L50: N/A | M50: N/A | N50: N/A | O50: N/A | P50: N/A | Q50: N/A | R50: N/A
C51: =IF(C9<>"10-Year Event","This line only for 10-Year Event",C9&" CREDIT**: Reduce Detention By:") -> 10-Year Event CREDIT**: Reduce Detention By: | E51: =IF($E$9="","",IF(E25="MISSING INPUT","",IF($C$9<>"10-Year Event","N/A",IF(E43="","N/A",IF(E43=0,"N/A",1-(((0.95*E45*100-1.9)/1000*E28))/((0.95*E43*100-1.9)/1000*E28)))))) -> 0.03815252412 | F51: =IF($E$9="","",IF(F25="MISSING INPUT","",IF($C$9<>"10-Year Event","N/A",IF(F43="","N/A",IF(F43=0,"N/A",1-(((0.95*F45*100-1.9)/1000*F28-AP202/43560))/((0.95*F43*100-1.9)/1000*F28)))))) -> N/A | G51: N/A | H51: N/A | I51: N/A | J51: N/A | K51: N/A | L51: N/A | M51: N/A | N51: N/A | O51: N/A | P51: N/A | Q51: N/A | R51: N/A
C52: =IF(C10<>"100-Year Event","This line only for 100-Year Event",C10&" CREDIT**: Reduce Detention By:") -> 100-Year Event CREDIT**: Reduce Detention By: | E52: =IF($E$10="","",IF(E25="MISSING INPUT","",IF($C$10<>"100-Year Event","N/A",IF(E43="","N/A",IF(E43=0,"N/A",IF(E37>=1,1-(((-0.00005501*(E46*100)^2+0.030148*(E46*100)-0.12)*E28/12))/((-0.00005501*(E43*100)^2+0.030148*(E43*100)-0.12)*E28/12),1-(((1.78*E46*100-0.002*(E46*100)^2-3.56)/900*E28)/((1.78*E43*100-0.002*(E43*100)^2-3.56)/900*E28)))))))) -> 0.01784406208 | F52: =IF($E$10="","",IF(F25="MISSING INPUT","",IF($C$10<>"100-Year Event","N/A",IF(F43="","N/A",IF(F43=0,"N/A",IF(F37>=1,1-(((-0.00005501*(F46*100)^2+0.030148*(F46*100)-0.12)*F28/12-AP203/43560))/((-0.00005501*(F43*100)^2+0.030148*(F43*100)-0.12)*F28/12),1-(((1.78*F46*100-0.002*(F46*100)^2-3.56)/900*F28-AP203/43560)/((1.78*F43*100-0.002*(F43*100)^2-3.56)/900*F28)))))))) -> N/A | G52: N/A | H52: N/A | I52: N/A | J52: N/A | K52: N/A | L52: N/A | M52: N/A | N52: N/A | O52: N/A | P52: N/A | Q52: N/A | R52: N/A
C53: =IF(C11="CUHP","User Defined " &C11&" CREDIT: Reduce Detention By:",IF(C11="NRCS Method","User Defined " &C11&" CREDIT: Reduce Detention By:","This line only for User Defined CUHP or NRCS Event")) -> User Defined CUHP CREDIT: Reduce Detention By: | E53: =IF(OR($C$11="CUHP",$C$11="NRCS Method"),IF(E25="MISSING INPUT","",IF(E19="","",IF($E$12="","",IF($C$11="CUHP",((BF147*MAX($BF$180,$BH$180,$BJ$180,$BL$180,$BN$180)*(1/12)*E19)-(BF149*MAX($BF$180,$BH$180,$BJ$180,$BL$180,$BN$180)*(1/12)*E19))/(BF147*MAX($BF$180,$BH$180,$BJ$180,$BL$180,$BN$180)*(1/12)*E19),((BF147*$E$12*(1/12)*E19)-(BF149*$E$12*(1/12)*E19))/(BF147*$E$12*(1/12)*E19))))),"") -> 0.01917392694 | F53: =IF(OR($C$11="CUHP",$C$11="NRCS Method"),IF(F25="MISSING INPUT","",IF(F19="","",IF($E$12="","",IF($C$11="CUHP",((BG147*MAX($BF$180,$BH$180,$BJ$180,$BL$180,$BN$180)*(1/12)*F19)-(BG149*MAX($BF$180,$BH$180,$BJ$180,$BL$180,$BN$180)*(1/12)*F19))/(BG147*MAX($BF$180,$BH$180,$BJ$180,$BL$180,$BN$180)*(1/12)*F19),((BG147*$E$12*(1/12)*F19)-(BG149*$E$12*(1/12)*F19))/(BG147*$E$12*(1/12)*F19))))),"") -> 
S54: =IF(OR($C$11="CUHP",$C$11="NRCS Method"),IF(S25="MISSING INPUT","",IF(S19="","",IF($E$12="","",IF($C$11="CUHP",((BT147*MAX($BF$180,$BH$180,$BJ$180,$BL$180,$BN$180)*(1/12)*S19)-(BT149*MAX($BF$180,$BH$180,$BJ$180,$BL$180,$BN$180)*(1/12)*S19-BC200/43560))/(BT147*MAX($BF$180,$BH$180,$BJ$180,$BL$180,$BN$180)*(1/12)*S19),((BT147*$E$12*(1/12)*S19)-(BT149*$E$12*(1/12)*S19)+BC201/43560)/(BT147*$E$12*(1/12)*S19))))),"") -> 
F55: Total Site Imperviousness: | G55: =IF(COUNTA(E8:E10)<1,"",IF(SUM(E20:R23)=0,"",IF(E25="MISSING INPUT","",(IF(E43="",0,E43*SUM(E20:E23))+IF(F43="",0,F43*SUM(F20:F23))+IF(G43="",0,G43*SUM(G20:G23))+IF(H43="",0,H43*SUM(H20:H23))+IF(I43="",0,I43*SUM(I20:I23))+IF(J43="",0,J43*SUM(J20:J23))+IF(K43="",0,K43*SUM(K20:K23))+IF(L43="",0,L43*SUM(L20:L23))+IF(M43="",0,M43*SUM(M20:M23))+IF(N43="",0,N43*SUM(N20:N23))+IF(O43="",0,O43*SUM(O20:O23))+IF(P43="",0,P43*SUM(P20:P23))+IF(Q43="",0,Q43*SUM(Q20:Q23))+IF(R43="",0,R43*SUM(R20:R23)))/SUM(E20:R23)))) -> 0.5 | I55: Notes:
F56: ="Total Site Effective Imperviousness for "&C8&": " -> Total Site Effective Imperviousness for WQCV Event: | G56: =IF($E$8="","",IF(E25="MISSING INPUT","",(IF(E44="",0,E44*SUM(E20:E23))+IF(F44="",0,F44*SUM(F20:F23))+IF(G44="",0,G44*SUM(G20:G23))+IF(H44="",0,H44*SUM(H20:H23))+IF(I44="",0,I44*SUM(I20:I23))+IF(J44="",0,J44*SUM(J20:J23))+IF(K44="",0,K44*SUM(K20:K23))+IF(L44="",0,L44*SUM(L20:L23))+IF(M44="",0,M44*SUM(M20:M23))+IF(N44="",0,N44*SUM(N20:N23))+IF(O44="",0,O44*SUM(O20:O23))+IF(P44="",0,P44*SUM(P20:P23))+IF(Q44="",0,Q44*SUM(Q20:Q23))+IF(R44="",0,R44*SUM(R20:R23)))/SUM(E20:R23))) -> 0.4606066777 | I56: * Use Green-Ampt average infiltration rate values from Table 3-3.
F57: ="Total Site Effective Imperviousness for "&C9&": " -> Total Site Effective Imperviousness for 10-Year Event: | G57: =IF($E$9="","",IF(E25="MISSING INPUT","",(IF(E45="",0,E45*SUM(E20:E23))+IF(F45="",0,F45*SUM(F20:F23))+IF(G45="",0,G45*SUM(G20:G23))+IF(H45="",0,H45*SUM(H20:H23))+IF(I45="",0,I45*SUM(I20:I23))+IF(J45="",0,J45*SUM(J20:J23))+IF(K45="",0,K45*SUM(K20:K23))+IF(L45="",0,L45*SUM(L20:L23))+IF(M45="",0,M45*SUM(M20:M23))+IF(N45="",0,N45*SUM(N20:N23))+IF(O45="",0,O45*SUM(O20:O23))+IF(P45="",0,P45*SUM(P20:P23))+IF(Q45="",0,Q45*SUM(Q20:Q23))+IF(R45="",0,R45*SUM(R20:R23)))/SUM(E20:R23))) -> 0.4816867884 | I57: ** Flood control detention volume credits based on empirical equations from Storage Chapter of USDCM. | BD57: IMPERVIOUS REDUCTION FACTOR (IRF) CALCULATIONS
F58: ="Total Site Effective Imperviousness for "&C10&": " -> Total Site Effective Imperviousness for 100-Year Event: | G58: =IF($E$10="","",IF(E25="MISSING INPUT","",(IF(E46="",0,E46*SUM(E20:E23))+IF(F46="",0,F46*SUM(F20:F23))+IF(G46="",0,G46*SUM(G20:G23))+IF(H46="",0,H46*SUM(H20:H23))+IF(I46="",0,I46*SUM(I20:I23))+IF(J46="",0,J46*SUM(J20:J23))+IF(K46="",0,K46*SUM(K20:K23))+IF(L46="",0,L46*SUM(L20:L23))+IF(M46="",0,M46*SUM(M20:M23))+IF(N46="",0,N46*SUM(N20:N23))+IF(O46="",0,O46*SUM(O20:O23))+IF(P46="",0,P46*SUM(P20:P23))+IF(Q46="",0,Q46*SUM(Q20:Q23))+IF(R46="",0,R46*SUM(R20:R23)))/SUM(E20:R23))) -> 0.4909257625 | I58: *** Method assumes that 1-hour rainfall depth is equivalent to 1-hour intensity for calculation purposed
B59: ="Total Site Effective Imperviousness for "&B11&" " &C11&": " -> Total Site Effective Imperviousness for Optional User Defined Storm CUHP: | G59: =IF($E$12="","",IF(E25="MISSING INPUT","",(IF(E47="",0,E47*SUM(E20:E23))+IF(F47="",0,F47*SUM(F20:F23))+IF(G47="",0,G47*SUM(G20:G23))+IF(H47="",0,H47*SUM(H20:H23))+IF(I47="",0,I47*SUM(I20:I23))+IF(J47="",0,J47*SUM(J20:J23))+IF(K47="",0,K47*SUM(K20:K23))+IF(L47="",0,L47*SUM(L20:L23))+IF(M47="",0,M47*SUM(M20:M23))+IF(N47="",0,N47*SUM(N20:N23))+IF(O47="",0,O47*SUM(O20:O23))+IF(P47="",0,P47*SUM(P20:P23))+IF(Q47="",0,Q47*SUM(Q20:Q23))+IF(R47="",0,R47*SUM(R20:R23)))/SUM(E20:R23))) -> 0.4896617701 | BD59: Ia Check | BE59: =IF(E34="","",E34) -> 0.5
BD60: ="f / I for "&C8&":" -> f / I for WQCV Event: | BE60: =IF(E35="","",IF(E35>2,2,E35)) -> 0.7166666667
BD61: ="f / I for "&C9&":" -> f / I for 10-Year Event: | BE61: 0.3294247788
BD62: ="f / I for "&C10&":" -> f / I for 100-Year Event: | BE62: 0.1823454602
BD63: ="f / I for "&B11&" "&C11&":" -> f / I for Optional User Defined Storm CUHP: | BE63: 0.2017303004
BD66: IRF - Conveyance Based
BE67: For (0 <= Ia <= 0.2) | BI67: For (0.2 < Ia <= 0.8) | BM67: For (0.8 < Ia <= 1.0)
BE68: m | BF68: z | BI68: m | BJ68: z | BM68: m | BN68: z
BD69: a | BE69: -0.1895 | BF69: 0 | BH69: a | BI69: 0.0554 | BJ69: -0.0512 | BL69: a | BM69: 0.0232 | BN69: -0.0235
BD70: b | BE70: 0.536 | BF70: 0 | BH70: b | BI70: -0.1028 | BJ70: 0.143 | BL70: b | BM70: -0.2275 | BN70: 0.2286
BD71: c | BE71: -1.6925 | BF71: 0 | BH71: c | BI71: 0.2302 | BJ71: -0.4085 | BL71: c | BM71: 1.0019 | BN71: -1.0032
BD72: d | BE72: 4.9141 | BF72: 0 | BH72: d | BI72: 0.0776 | BJ72: 0.9755 | BL72: d | BM72: -0.147 | BN72: 1.1474
BD74: ="IRF for "&C8&":" -> IRF for WQCV Event: | BE74: =IF(BE$59="","",IF(AND(BE60<=0,BE$59>0),1,IF(BE$59<=0,0,IF(BE$59<=0.2,(($BE$69*BE60^3+$BE$70*BE60^2+$BE$71*BE60+$BE$72)*BE$59+0),IF(BE$59<=0.8,(($BI$69*BE60^3+$BI$70*BE60^2+$BI$71*BE60+$BI$72)*BE$59+($BJ$69*BE60^3+$BJ$70*BE60^2+$BJ$71*BE60+$BJ$72)),IF(BE$59<1,(($BM$69*BE60^3+$BM$70*BE60^2+$BM$71*BE60+$BM$72)*BE$59+($BN$69*BE60^3+$BN$70*BE60^2+$BN$71*BE60+$BN$72)),1)))))) -> 0.8424267106
BD75: ="IRF for "&C9&":" -> IRF for 10-Year Event: | BE75: =IF(BE$59="","",IF(AND(BE61<=0,BE$59>0),1,IF(BE$59<=0,0,IF(BE$59<=0.2,(($BE$69*BE61^3+$BE$70*BE61^2+$BE$71*BE61+$BE$72)*BE$59+0),IF(BE$59<=0.8,(($BI$69*BE61^3+$BI$70*BE61^2+$BI$71*BE61+$BI$72)*BE$59+($BJ$69*BE61^3+$BJ$70*BE61^2+$BJ$71*BE61+$BJ$72)),IF(BE$59<1,(($BM$69*BE61^3+$BM$70*BE61^2+$BM$71*BE61+$BM$72)*BE$59+($BN$69*BE61^3+$BN$70*BE61^2+$BN$71*BE61+$BN$72)),1)))))) -> 0.9267471537
BD76: ="IRFI for "&C10&":" -> IRFI for 100-Year Event: | BE76: =IF(BE$59="","",IF(AND(BE62<=0,BE$59>0),1,IF(BE$59<=0,0,IF(BE$59<=0.2,(($BE$69*BE62^3+$BE$70*BE62^2+$BE$71*BE62+$BE$72)*BE$59+0),IF(BE$59<=0.8,(($BI$69*BE62^3+$BI$70*BE62^2+$BI$71*BE62+$BI$72)*BE$59+($BJ$69*BE62^3+$BJ$70*BE62^2+$BJ$71*BE62+$BJ$72)),IF(BE$59<1,(($BM$69*BE62^3+$BM$70*BE62^2+$BM$71*BE62+$BM$72)*BE$59+($BN$69*BE62^3+$BN$70*BE62^2+$BN$71*BE62+$BN$72)),1)))))) -> 0.9637030502
BD77: ="IRF for "&B11&" "&C11&":" -> IRF for Optional User Defined Storm CUHP: | BE77: =IF(BE$59="","",IF(AND(BE63<=0,BE$59>0),1,IF(BE$59<=0,0,IF(BE$59<=0.2,(($BE$69*BE63^3+$BE$70*BE63^2+$BE$71*BE63+$BE$72)*BE$59+0),IF(BE$59<=0.8,(($BI$69*BE63^3+$BI$70*BE63^2+$BI$71*BE63+$BI$72)*BE$59+($BJ$69*BE63^3+$BJ$70*BE63^2+$BJ$71*BE63+$BJ$72)),IF(BE$59<1,(($BM$69*BE63^3+$BM$70*BE63^2+$BM$71*BE63+$BM$72)*BE$59+($BN$69*BE63^3+$BN$70*BE63^2+$BN$71*BE63+$BN$72)),1)))))) -> 0.9586470805
BD80: IRF - Storage Based
BC82: For (0 <= Ia <= 0.2) | BG82: For (0.2 < Ia <= 0.4) | BK82: For (0.4 < Ia <= 0.6) | BO82: For (0.6 < Ia <= 0.8) | BS82: For (0.8 < Ia <= 1.0)
BC83: m | BD83: z | BG83: m | BH83: z | BK83: m | BL83: z | BO83: m | BP83: z | BS83: m | BT83: z
BB84: c1 | BC84: -1.7183 | BD84: 0 | BE84: f/I < 1.0 | BF84: c1 | BG84: 0.0863 | BH84: -0.361 | BI84: f/I < 1.0 | BJ84: c1 | BK84: 0.0176 | BL84: -0.3334 | BM84: f/I < 1.0 | BN84: b1 | BQ84: f/I < 1.0 | BR84: a | BS84: -0.0464 | BT84: 0.0465
BB85: d1 | BC85: 4.6092 | BD85: 0 | BF85: d1 | BG85: 0.4569 | BH85: 0.8305 | BJ85: d1 | BK85: 0.2412 | BL85: 0.9167 | BN85: c1 | BO85: 0.0279 | BP85: -0.3396 | BR85: b | BS85: -0.1236 | BT85: 0.1232
BB86: c2 | BC86: -5.7817 | BD86: 0 | BE86: f/1 < 1.5 | BF86: c2 | BG86: 1.2347 | BH86: -1.4032 | BI86: f/1 < 1.5 | BJ86: c2 | BK86: 2.2065 | BL86: -1.792 | BM86: f/1 < 1.5 | BN86: d1 | BO86: 0.186 | BP86: 0.9498 | BR86: c | BS86: 1.8531 | BT86: -1.8528
BB87: d2 | BC87: 8.6725 | BD87: 0 | BF87: d2 | BG87: -0.6916 | BH87: 1.8727 | BJ87: d2 | BK87: -1.9477 | BL87: 2.3753 | BN87: b2 | BO87: 0.0136 | BP87: 0.0554 | BQ87: f/1 <= 2.0 | BR87: d | BS87: -0.5899 | BT87: 1.5898
BF88: c3 | BG88: -2.321 | BH88: 0.4642 | BI88: f/1 < 2.0 | BJ88: c3 | BK88: 0.2994 | BL88: -0.584 | BM88: f/1 <= 2.0 | BN88: c2 | BO88: 0.9826 | BP88: -1.2165
BF89: d3 | BG89: 4.642 | BH89: -0.9284 | BJ89: d3 | BK89: 0.913 | BL89: 0.5633 | BN89: d2 | BO89: -0.7823 | BP89: 1.7713
BD91: ="K-slope for "&C8&":" -> K-slope for WQCV Event: | BE91: =IF(BE$59="","",IF(BE$59=0,0,IF(BE$59<=0.2,IF(BE$60<1,$BC$84*BE$60+$BC$85,IF(BE$60<1.5,$BC$86*BE$60+$BC$87,0)),IF(BE$59<=0.4,IF(BE$60<1,$BG$84*BE$60+$BG$85,IF(BE$60<1.5,$BG$86*BE$60+$BG$87,$BG$88*BE$60+$BG$89)),IF(BE$59<=0.6,IF(BE$60<1,$BK$84*BE$60+$BK$85,IF(BE$60<1.5,$BK$86*BE$60+$BK$87,$BK$88*BE$60+$BK$89)),IF(BE$59<=0.8,IF(BE$60<1,$BO$85*BE$60+$BO$86,$BO$87*BE$60^2+$BO$88*BE$60+$BO$89),IF(BE$59<1,$BS$84*BE$60^3+$BS$85*BE$60^2+$BS$86*BE$60+$BS$87,0))))))) -> 0.2538133333 | BF91: =IF(BF$59="","",IF(BF$59=0,0,IF(BF$59<=0.2,IF(BF$60<1,$BC$84*BF$60+$BC$85,IF(BF$60<1.5,$BC$86*BF$60+$BC$87,0)),IF(BF$59<=0.4,IF(BF$60<1,$BG$84*BF$60+$BG$85,IF(BF$60<1.5,$BG$86*BF$60+$BG$87,$BG$88*BF$60+$BG$89)),IF(BF$59<=0.6,IF(BF$60<1,$BK$84*BF$60+$BK$85,IF(BF$60<1.5,$BK$86*BF$60+$BK$87,$BK$88*BF$60+$BK$89)),IF(BF$59<=0.8,IF(BF$60<1,$BO$85*BF$60+$BO$86,$BO$87*BF$60^2+$BO$88*BF$60+$BO$89),IF(BF$59<1,$BS$84*BF$60^3+$BS$85*BF$60^2+$BS$86*BF$60+$BS$87,0))))))) -> 
BD92: ="K-intercept for "&C8&":" -> K-intercept for WQCV Event: | BE92: =IF(BE$59="","",IF(BE$59=0,0,IF(BE$59<=0.2,IF(BE$60<1,$BD$84*BE$60+$BD$85,IF(BE$60<1.5,$BD$86*BE$60+$BD$87,0)),IF(BE$59<=0.4,IF(BE$60<1,$BH$84*BE$60+$BH$85,IF(BE$60<1.5,$BH$86*BE$60+$BH$87,$BH$88*BE$60+$BH$89)),IF(BE$59<=0.6,IF(BE$60<1,$BL$84*BE$60+$BL$85,IF(BE$60<1.5,$BL$86*BE$60+$BL$87,$BL$88*BE$60+$BL$89)),IF(BE$59<=0.8,IF(BE$60<1,$BP$85*BE$60+$BP$86,$BP$87*BE$60^2+$BP$88*BE$60+$BP$89),IF(BE$59<1,$BT$84*BE$60^3+$BT$85*BE$60^2+$BT$86*BE$60+$BT$87,1))))))) -> 0.6777633333 | BF92: =IF(BF$59="","",IF(BF$59=0,0,IF(BF$59<=0.2,IF(BF$60<1,$BD$84*BF$60+$BD$85,IF(BF$60<1.5,$BD$86*BF$60+$BD$87,0)),IF(BF$59<=0.4,IF(BF$60<1,$BH$84*BF$60+$BH$85,IF(BF$60<1.5,$BH$86*BF$60+$BH$87,$BH$88*BF$60+$BH$89)),IF(BF$59<=0.6,IF(BF$60<1,$BL$84*BF$60+$BL$85,IF(BF$60<1.5,$BL$86*BF$60+$BL$87,$BL$88*BF$60+$BL$89)),IF(BF$59<=0.8,IF(BF$60<1,$BP$85*BF$60+$BP$86,$BP$87*BF$60^2+$BP$88*BF$60+$BP$89),IF(BF$59<1,$BT$84*BF$60^3+$BT$85*BF$60^2+$BT$86*BF$60+$BT$87,1))))))) -> 
BD93: ="IRF for "&C8&":" -> IRF for WQCV Event: | BE93: =IF(BE$59="","",IF(AND(BE60<=0,BE$59>0),1,IF(BE91*BE$59+BE92<0,0,BE91*BE$59+BE92))) -> 0.80467 | BF93: =IF(BF$59="","",IF(AND(BF60<=0,BF$59>0),1,IF(BF91*BF$59+BF92<0,0,BF91*BF$59+BF92))) -> 
BD94: ="K-slope for "&C9&":" -> K-slope for 10-Year Event: | BE94: =IF(BE$59="","",IF(BE$59=0,0,IF(BE$59<=0.2,IF(BE$61<1,$BC$84*BE$61+$BC$85,IF(BE$61<1.5,$BC$86*BE$61+$BC$87,0)),IF(BE$59<=0.4,IF(BE$61<1,$BG$84*BE$61+$BG$85,IF(BE$61<1.5,$BG$86*BE$61+$BG$87,$BG$88*BE$61+$BG$89)),IF(BE$59<=0.6,IF(BE$61<1,$BK$84*BE$61+$BK$85,IF(BE$61<1.5,$BK$86*BE$61+$BK$87,$BK$88*BE$61+$BK$89)),IF(BE$59<=0.8,IF(BE$61<1,$BO$85*BE$61+$BO$86,$BO$87*BE$61^2+$BO$88*BE$61+$BO$89),IF(BE$59<1,$BS$84*BE$61^3+$BS$85*BE$61^2+$BS$86*BE$61+$BS$87,0))))))) -> 0.2469978761 | BF94: =IF(BF$59="","",IF(BF$59=0,0,IF(BF$59<=0.2,IF(BF$61<1,$BC$84*BF$61+$BC$85,IF(BF$61<1.5,$BC$86*BF$61+$BC$87,0)),IF(BF$59<=0.4,IF(BF$61<1,$BG$84*BF$61+$BG$85,IF(BF$61<1.5,$BG$86*BF$61+$BG$87,$BG$88*BF$61+$BG$89)),IF(BF$59<=0.6,IF(BF$61<1,$BK$84*BF$61+$BK$85,IF(BF$61<1.5,$BK$86*BF$61+$BK$87,$BK$88*BF$61+$BK$89)),IF(BF$59<=0.8,IF(BF$61<1,$BO$85*BF$61+$BO$86,$BO$87*BF$61^2+$BO$88*BF$61+$BO$89),IF(BF$59<1,$BS$84*BF$61^3+$BS$85*BF$61^2+$BS$86*BF$61+$BS$87,0))))))) -> 
BD95: ="K-intercept for "&C9&":" -> K-intercept for 10-Year Event: | BE95: =IF(BE$59="","",IF(BE$59=0,0,IF(BE$59<=0.2,IF(BE$61<1,$BD$84*BE$61+$BD$85,IF(BE$61<1.5,$BD$86*BE$61+$BD$87,0)),IF(BE$59<=0.4,IF(BE$61<1,$BH$84*BE$61+$BH$85,IF(BE$61<1.5,$BH$86*BE$61+$BH$87,$BH$88*BE$61+$BH$89)),IF(BE$59<=0.6,IF(BE$61<1,$BL$84*BE$61+$BL$85,IF(BE$61<1.5,$BL$86*BE$61+$BL$87,$BL$88*BE$61+$BL$89)),IF(BE$59<=0.8,IF(BE$61<1,$BP$85*BE$61+$BP$86,$BP$87*BE$61^2+$BP$88*BE$61+$BP$89),IF(BE$59<1,$BT$84*BE$61^3+$BT$85*BE$61^2+$BT$86*BE$61+$BT$87,1))))))) -> 0.8068697788 | BF95: =IF(BF$59="","",IF(BF$59=0,0,IF(BF$59<=0.2,IF(BF$61<1,$BD$84*BF$61+$BD$85,IF(BF$61<1.5,$BD$86*BF$61+$BD$87,0)),IF(BF$59<=0.4,IF(BF$61<1,$BH$84*BF$61+$BH$85,IF(BF$61<1.5,$BH$86*BF$61+$BH$87,$BH$88*BF$61+$BH$89)),IF(BF$59<=0.6,IF(BF$61<1,$BL$84*BF$61+$BL$85,IF(BF$61<1.5,$BL$86*BF$61+$BL$87,$BL$88*BF$61+$BL$89)),IF(BF$59<=0.8,IF(BF$61<1,$BP$85*BF$61+$BP$86,$BP$87*BF$61^2+$BP$88*BF$61+$BP$89),IF(BF$59<1,$BT$84*BF$61^3+$BT$85*BF$61^2+$BT$86*BF$61+$BT$87,1))))))) -> 
BD96: ="IRF for "&C9&":" -> IRF for 10-Year Event: | BE96: =IF(BE$59="","",IF(AND(BE61<=0,BE$59>0),1,IF(BE94*BE$59+BE95<0,0,BE94*BE$59+BE95))) -> 0.9303687168 | BF96: =IF(BF$59="","",IF(AND(BF61<=0,BF$59>0),1,IF(BF94*BF$59+BF95<0,0,BF94*BF$59+BF95))) -> 
BD97: ="K-slope for "&C10&":" -> K-slope for 100-Year Event: | BE97: =IF(BE$59="","",IF(BE$59=0,0,IF(BE$59<=0.2,IF(BE$62<1,$BC$84*BE$62+$BC$85,IF(BE$62<1.5,$BC$86*BE$62+$BC$87,0)),IF(BE$59<=0.4,IF(BE$62<1,$BG$84*BE$62+$BG$85,IF(BE$62<1.5,$BG$86*BE$62+$BG$87,$BG$88*BE$62+$BG$89)),IF(BE$59<=0.6,IF(BE$62<1,$BK$84*BE$62+$BK$85,IF(BE$62<1.5,$BK$86*BE$62+$BK$87,$BK$88*BE$62+$BK$89)),IF(BE$59<=0.8,IF(BE$62<1,$BO$85*BE$62+$BO$86,$BO$87*BE$62^2+$BO$88*BE$62+$BO$89),IF(BE$59<1,$BS$84*BE$62^3+$BS$85*BE$62^2+$BS$86*BE$62+$BS$87,0))))))) -> 0.2444092801 | BF97: =IF(BF$59="","",IF(BF$59=0,0,IF(BF$59<=0.2,IF(BF$62<1,$BC$84*BF$62+$BC$85,IF(BF$62<1.5,$BC$86*BF$62+$BC$87,0)),IF(BF$59<=0.4,IF(BF$62<1,$BG$84*BF$62+$BG$85,IF(BF$62<1.5,$BG$86*BF$62+$BG$87,$BG$88*BF$62+$BG$89)),IF(BF$59<=0.6,IF(BF$62<1,$BK$84*BF$62+$BK$85,IF(BF$62<1.5,$BK$86*BF$62+$BK$87,$BK$88*BF$62+$BK$89)),IF(BF$59<=0.8,IF(BF$62<1,$BO$85*BF$62+$BO$86,$BO$87*BF$62^2+$BO$88*BF$62+$BO$89),IF(BF$59<1,$BS$84*BF$62^3+$BS$85*BF$62^2+$BS$86*BF$62+$BS$87,0))))))) -> 
BD98: ="K-intercept for "&C10&":" -> K-intercept for 100-Year Event: | BE98: =IF(BE$59="","",IF(BE$59=0,0,IF(BE$59<=0.2,IF(BE$62<1,$BD$84*BE$62+$BD$85,IF(BE$62<1.5,$BD$86*BE$62+$BD$87,0)),IF(BE$59<=0.4,IF(BE$62<1,$BH$84*BE$62+$BH$85,IF(BE$62<1.5,$BH$86*BE$62+$BH$87,$BH$88*BE$62+$BH$89)),IF(BE$59<=0.6,IF(BE$62<1,$BL$84*BE$62+$BL$85,IF(BE$62<1.5,$BL$86*BE$62+$BL$87,$BL$88*BE$62+$BL$89)),IF(BE$59<=0.8,IF(BE$62<1,$BP$85*BE$62+$BP$86,$BP$87*BE$62^2+$BP$88*BE$62+$BP$89),IF(BE$59<1,$BT$84*BE$62^3+$BT$85*BE$62^2+$BT$86*BE$62+$BT$87,1))))))) -> 0.8559060236 | BF98: =IF(BF$59="","",IF(BF$59=0,0,IF(BF$59<=0.2,IF(BF$62<1,$BD$84*BF$62+$BD$85,IF(BF$62<1.5,$BD$86*BF$62+$BD$87,0)),IF(BF$59<=0.4,IF(BF$62<1,$BH$84*BF$62+$BH$85,IF(BF$62<1.5,$BH$86*BF$62+$BH$87,$BH$88*BF$62+$BH$89)),IF(BF$59<=0.6,IF(BF$62<1,$BL$84*BF$62+$BL$85,IF(BF$62<1.5,$BL$86*BF$62+$BL$87,$BL$88*BF$62+$BL$89)),IF(BF$59<=0.8,IF(BF$62<1,$BP$85*BF$62+$BP$86,$BP$87*BF$62^2+$BP$88*BF$62+$BP$89),IF(BF$59<1,$BT$84*BF$62^3+$BT$85*BF$62^2+$BT$86*BF$62+$BT$87,1))))))) -> 
BD99: ="IRFI for "&C10&":" -> IRFI for 100-Year Event: | BE99: =IF(BE$59="","",IF(AND(BE62<=0,BE$59>0),1,IF(BE97*BE$59+BE98<0,0,BE97*BE$59+BE98))) -> 0.9781106636 | BF99: =IF(BF$59="","",IF(AND(BF62<=0,BF$59>0),1,IF(BF97*BF$59+BF98<0,0,BF97*BF$59+BF98))) -> 
BD100: ="K-slope for "&B11&" "&C11&":" -> K-slope for Optional User Defined Storm CUHP: | BE100: =IF(BE$59="","",IF(BE$59=0,0,IF(BE$59<=0.2,IF(BE$63<1,$BC$84*BE$63+$BC$85,IF(BE$63<1.5,$BC$86*BE$63+$BC$87,0)),IF(BE$59<=0.4,IF(BE$63<1,$BG$84*BE$63+$BG$85,IF(BE$63<1.5,$BG$86*BE$63+$BG$87,$BG$88*BE$63+$BG$89)),IF(BE$59<=0.6,IF(BE$63<1,$BK$84*BE$63+$BK$85,IF(BE$63<1.5,$BK$86*BE$63+$BK$87,$BK$88*BE$63+$BK$89)),IF(BE$59<=0.8,IF(BE$63<1,$BO$85*BE$63+$BO$86,$BO$87*BE$63^2+$BO$88*BE$63+$BO$89),IF(BE$59<1,$BS$84*BE$63^3+$BS$85*BE$63^2+$BS$86*BE$63+$BS$87,0))))))) -> 0.2447504533 | BF100: =IF(BF$59="","",IF(BF$59=0,0,IF(BF$59<=0.2,IF(BF$63<1,$BC$84*BF$63+$BC$85,IF(BF$63<1.5,$BC$86*BF$63+$BC$87,0)),IF(BF$59<=0.4,IF(BF$63<1,$BG$84*BF$63+$BG$85,IF(BF$63<1.5,$BG$86*BF$63+$BG$87,$BG$88*BF$63+$BG$89)),IF(BF$59<=0.6,IF(BF$63<1,$BK$84*BF$63+$BK$85,IF(BF$63<1.5,$BK$86*BF$63+$BK$87,$BK$88*BF$63+$BK$89)),IF(BF$59<=0.8,IF(BF$63<1,$BO$85*BF$63+$BO$86,$BO$87*BF$63^2+$BO$88*BF$63+$BO$89),IF(BF$59<1,$BS$84*BF$63^3+$BS$85*BF$63^2+$BS$86*BF$63+$BS$87,0))))))) -> 
BD101: ="K-intercept for "&B11&" "&C11&":" -> K-intercept for Optional User Defined Storm CUHP: | BE101: =IF(BE$59="","",IF(BE$59=0,0,IF(BE$59<=0.2,IF(BE$63<1,$BD$84*BE$63+$BD$85,IF(BE$63<1.5,$BD$86*BE$63+$BD$87,0)),IF(BE$59<=0.4,IF(BE$63<1,$BH$84*BE$63+$BH$85,IF(BE$63<1.5,$BH$86*BE$63+$BH$87,$BH$88*BE$63+$BH$89)),IF(BE$59<=0.6,IF(BE$63<1,$BL$84*BE$63+$BL$85,IF(BE$63<1.5,$BL$86*BE$63+$BL$87,$BL$88*BE$63+$BL$89)),IF(BE$59<=0.8,IF(BE$63<1,$BP$85*BE$63+$BP$86,$BP$87*BE$63^2+$BP$88*BE$63+$BP$89),IF(BE$59<1,$BT$84*BE$63^3+$BT$85*BE$63^2+$BT$86*BE$63+$BT$87,1))))))) -> 0.8494431178 | BF101: =IF(BF$59="","",IF(BF$59=0,0,IF(BF$59<=0.2,IF(BF$63<1,$BD$84*BF$63+$BD$85,IF(BF$63<1.5,$BD$86*BF$63+$BD$87,0)),IF(BF$59<=0.4,IF(BF$63<1,$BH$84*BF$63+$BH$85,IF(BF$63<1.5,$BH$86*BF$63+$BH$87,$BH$88*BF$63+$BH$89)),IF(BF$59<=0.6,IF(BF$63<1,$BL$84*BF$63+$BL$85,IF(BF$63<1.5,$BL$86*BF$63+$BL$87,$BL$88*BF$63+$BL$89)),IF(BF$59<=0.8,IF(BF$63<1,$BP$85*BF$63+$BP$86,$BP$87*BF$63^2+$BP$88*BF$63+$BP$89),IF(BF$59<1,$BT$84*BF$63^3+$BT$85*BF$63^2+$BT$86*BF$63+$BT$87,1))))))) -> 
BD102: ="IRF for "&B11&" "&C11&":" -> IRF for Optional User Defined Storm CUHP: | BE102: =IF(BE$59="","",IF(AND(BE63<=0,BE$59>0),1,IF(BE100*BE$59+BE101<0,0,BE100*BE$59+BE101))) -> 0.9718183445 | BF102: =IF(BF$59="","",IF(AND(BF63<=0,BF$59>0),1,IF(BF100*BF$59+BF101<0,0,BF100*BF$59+BF101))) -> 
BD109: Mean Annual Event | BG109: 2-Year Event | BI109: 5-Year Event | BK109: C | BL109: User Specified Event
BD110: WQCV Event | BG110: 5-Year Event | BI110: 10-Year Event | BK110: V | BL110: 2-Year Event | BM110: CUHP
BD111: 95th Percentile Event | BG111: 10-Year Event | BI111: 25-Year Event | BK111: PP | BL111: 5-Year Event | BM111: NRCS Method
BD112: 1-Year Event | BG112: 25-Year Event | BI112: 50-Year Event | BL112: 10-Year Event
BD113: 2-Year Event | BG113: 50-Year Event | BI113: 100-Year Event | BL113: 25-Year Event
BD114: Storm Event 1 | BG114: Storm Event 2 | BI114: Storm Event 3 | BL114: 50-Year Event
BL115: 100-Year Event
BD118: USER SPECIFIED INFORMATION
BD119: Total Runoff Coefficient (Ro):
BD121: Percent Imperviousness | BE121: Type C and D NRCS Hydrologic Soil Groups
BE122: 2-yr
BD123: 0 | BE123: 0.04
BD124: 0.05 | BE124: 0.08
BD125: 0.1 | BE125: 0.11
BD126: 0.15 | BE126: 0.14
BD127: 0.2 | BE127: 0.17
BD128: 0.25 | BE128: 0.2
BD129: 0.3 | BE129: 0.22
BD130: 0.35 | BE130: 0.25
BD131: 0.4 | BE131: 0.28
BD132: 0.45 | BE132: 0.31
BD133: 0.5 | BE133: 0.34
BD134: 0.55 | BE134: 0.37
BD135: 0.6 | BE135: 0.41
BD136: 0.65 | BE136: 0.45
BD137: 0.7 | BE137: 0.49
BD138: 0.75 | BE138: 0.54
BD139: 0.8 | BE139: 0.6
BD140: 0.85 | BE140: 0.66
BD141: 0.9 | BE141: 0.73
BD142: 0.95 | BE142: 0.8
BD143: 1 | BE143: 0.89
BD145: Sub-basin Identifier | BF145: =IF(E17="","",E17) -> 1
BD146: % Imperviousness Before IRF | BF146: =IF(E17="","",E43) -> 0.5
BD147: Runoff Coefficient C or D Soil | BF147: =IF(BF146="","",(0.858*BF146^3-0.786*BF146^2+0.774*BF146+0.04)) -> 0.33775 | BG147: =IF(BG146="","",(0.858*BG146^3-0.786*BG146^2+0.774*BG146+0.04)) -> 
BD148: % Imperviousness After IRF | BF148: =E47 -> 0.4896617701 | BG148: =F47 -> 
BD149: Runoff Coefficient C or D Soil | BF149: =IF(BF148="","",(0.858*BF148^3-0.786*BF148^2+0.774*BF148+0.04)) -> 0.3312740062 | BG149: =IF(BG148="","",(0.858*BG148^3-0.786*BG148^2+0.774*BG148+0.04)) -> 
BD153: User Defined Storm - CUHP Method
AR154: Time (Minutes) | AS154: CUHP Rainfall Distribution | BD154: Time (Minutes) | BE154: CUHP Rainfall Distribution | BP154: NRCS 24-Hour Type II Rainfall Distribution
AS155: 10-Year | AT155: Rainfall | AU155: 100- and 500-Year | AV155: Rainfall | BE155: 2-Year | BF155: Rainfall | BG155: 5-Year | BH155: Rainfall | BI155: 10-Year | BJ155: Rainfall | BK155: 25- and 50-Year | BL155: Rainfall | BM155: 100- and 500-Year | BN155: Rainfall | BP155: Time (Hour) | BQ155: Fraction of 24 Hour Rainfall | BR155: Cumulative Rainfall | BS155: % of Total Rainfall | BT155: Incremental Rainfall | BU155: Intensity (in/hr)
AR156: 5 | AS156: 0.02 | AT156: =AS156*IRF_DEPTH_2 -> 0.032 | AU156: 0.01 | AV156: =AU156*IRF_DEPTH_3 -> 0.026 | BD156: 5 | BE156: 0.02 | BF156: =IF($C$11="CUHP",IF($C$12="2-Year Event",BE156*$E$12,""),"") ->  | BG156: 0.02 | BH156: =IF($C$11="CUHP",IF($C$12="5-Year Event",BG156*$E$12,""),"") ->  | BI156: 0.02 | BJ156: =IF($C$11="CUHP",IF($C$12="10-Year Event",BI156*$E$12,""),"") ->  | BK156: 0.013 | BL156: =IF($C$11="CUHP",IF(OR($C$12="50-Year Event",$C$12="25-Year Event"),BK156*$E$12,""),"") ->  | BM156: 0.01 | BN156: =IF($C$11="CUHP",IF($C$12="100-Year Event",BM156*$E$12,""),"") -> 0.0231 | BP156: 0 | BQ156: 0 | BR156: =IF($C$11="NRCS Method",$E$12*BQ156,"") ->  | BS156: =BQ156 -> 0 | BT156: =$E$12*BS156 -> 0
AR157: 10 | AS157: 0.037 | AT157: 0.0592 | AU157: 0.03 | AV157: 0.078 | BD157: 10 | BE157: 0.04 | BF157: =IF($C$11="CUHP",IF($C$12="2-Year Event",BE157*$E$12,""),"") ->  | BG157: 0.037 | BH157: =IF($C$11="CUHP",IF($C$12="5-Year Event",BG157*$E$12,""),"") ->  | BI157: 0.037 | BJ157: =IF($C$11="CUHP",IF($C$12="10-Year Event",BI157*$E$12,""),"") ->  | BK157: 0.035 | BL157: =IF($C$11="CUHP",IF(OR($C$12="50-Year Event",$C$12="25-Year Event"),BK157*$E$12,""),"") ->  | BM157: 0.03 | BN157: =IF($C$11="CUHP",IF($C$12="100-Year Event",BM157*$E$12,""),"") -> 0.0693 | BP157: 2 | BQ157: 0.022 | BR157: =IF($C$11="NRCS Method",$E$12*BQ157,"") ->  | BS157: =BQ157-BQ156 -> 0.022 | BT157: =$E$12*BS157 -> 0.05082 | BU157: =BT157/(BP157-BP156) -> 0.02541
AR158: 15 | AS158: 0.082 | AT158: 0.1312 | AU158: 0.046 | AV158: 0.1196 | BD158: 15 | BE158: 0.084 | BG158: 0.087 | BI158: 0.082 | BK158: 0.05 | BM158: 0.046 | BN158: 0.10626 | BP158: 4 | BQ158: 0.048 | BS158: 0.026 | BT158: 0.06006 | BU158: =BT158/(BP158-BP157) -> 0.03003
AR159: 20 | AS159: 0.15 | AT159: 0.24 | AU159: 0.08 | AV159: 0.208 | BD159: 20 | BE159: 0.16 | BG159: 0.153 | BI159: 0.15 | BK159: 0.08 | BM159: 0.08 | BN159: 0.1848 | BP159: 6 | BQ159: 0.08 | BS159: 0.032 | BT159: 0.07392 | BU159: 0.03696
AR160: 25 | AS160: 0.25 | AT160: 0.4 | AU160: 0.14 | AV160: 0.364 | BD160: 25 | BE160: 0.25 | BG160: 0.25 | BI160: 0.25 | BK160: 0.15 | BM160: 0.14 | BN160: 0.3234 | BP160: 7 | BQ160: 0.098 | BS160: 0.018 | BT160: 0.04158 | BU160: 0.04158
AR161: 30 | AS161: 0.12 | AT161: 0.192 | AU161: 0.25 | AV161: 0.65 | BD161: 30 | BE161: 0.14 | BG161: 0.13 | BI161: 0.12 | BK161: 0.25 | BM161: 0.25 | BN161: 0.5775 | BP161: 8 | BQ161: 0.12 | BS161: 0.022 | BT161: 0.05082 | BU161: 0.05082
AR162: 35 | AS162: 0.056 | AT162: 0.0896 | AU162: 0.14 | AV162: 0.364 | BD162: 35 | BE162: 0.063 | BG162: 0.058 | BI162: 0.056 | BK162: 0.12 | BM162: 0.14 | BN162: 0.3234 | BP162: 8.5 | BQ162: 0.133 | BS162: 0.013 | BT162: 0.03003 | BU162: 0.06006
AR163: 40 | AS163: 0.043 | AT163: 0.0688 | AU163: 0.08 | AV163: 0.208 | BD163: 40 | BE163: 0.05 | BG163: 0.044 | BI163: 0.043 | BK163: 0.08 | BM163: 0.08 | BN163: 0.1848 | BP163: 9 | BQ163: 0.147 | BS163: 0.014 | BT163: 0.03234 | BU163: 0.06468
AR164: 45 | AS164: 0.038 | AT164: 0.0608 | AU164: 0.062 | AV164: 0.1612 | BD164: 45 | BE164: 0.03 | BG164: 0.036 | BI164: 0.038 | BK164: 0.05 | BM164: 0.062 | BN164: 0.14322 | BP164: 9.5 | BQ164: 0.163 | BS164: 0.016 | BT164: 0.03696 | BU164: 0.07392
AR165: 50 | AS165: 0.032 | AT165: 0.0512 | AU165: 0.05 | AV165: 0.13 | BD165: 50 | BE165: 0.03 | BG165: 0.036 | BI165: 0.032 | BK165: 0.05 | BM165: 0.05 | BN165: 0.1155 | BP165: 9.75 | BQ165: 0.172 | BS165: 0.009 | BT165: 0.02079 | BU165: 0.08316
AR166: 55 | AS166: 0.032 | AT166: 0.0512 | AU166: 0.04 | AV166: 0.104 | BD166: 55 | BE166: 0.03 | BG166: 0.03 | BI166: 0.032 | BK166: 0.032 | BM166: 0.04 | BN166: 0.0924 | BP166: 10 | BQ166: 0.181 | BS166: 0.009 | BT166: 0.02079 | BU166: 0.08316
AR167: 60 | AS167: 0.032 | AT167: 0.0512 | AU167: 0.04 | AV167: 0.104 | BD167: 60 | BE167: 0.03 | BG167: 0.03 | BI167: 0.032 | BK167: 0.032 | BM167: 0.04 | BN167: 0.0924 | BP167: 10.5 | BQ167: 0.204 | BS167: 0.023 | BT167: 0.05313 | BU167: 0.10626
AR168: 65 | AS168: 0.032 | AT168: 0.0512 | AU168: 0.04 | AV168: 0.104 | BD168: 65 | BE168: 0.03 | BG168: 0.03 | BI168: 0.032 | BK168: 0.032 | BM168: 0.04 | BN168: 0.0924 | BP168: 11 | BQ168: 0.235 | BS168: 0.031 | BT168: 0.07161 | BU168: 0.14322
AR169: 70 | AS169: 0.032 | AT169: 0.0512 | AU169: 0.02 | AV169: 0.052 | BD169: 70 | BE169: 0.02 | BG169: 0.03 | BI169: 0.032 | BK169: 0.024 | BM169: 0.02 | BN169: 0.0462 | BP169: 11.5 | BQ169: 0.283 | BS169: 0.048 | BT169: 0.11088 | BU169: 0.22176
AR170: 75 | AS170: 0.032 | AT170: 0.0512 | AU170: 0.02 | AV170: 0.052 | BD170: 75 | BE170: 0.02 | BG170: 0.025 | BI170: 0.032 | BK170: 0.024 | BM170: 0.02 | BN170: 0.0462 | BP170: 11.75 | BQ170: 0.357 | BS170: 0.074 | BT170: 0.17094 | BU170: 0.68376
AR171: 80 | AS171: 0.025 | AT171: 0.04 | AU171: 0.012 | AV171: 0.0312 | BD171: 80 | BE171: 0.02 | BG171: 0.022 | BI171: 0.025 | BK171: 0.018 | BM171: 0.012 | BN171: 0.02772 | BP171: 12 | BQ171: 0.663 | BS171: 0.306 | BT171: 0.70686 | BU171: 2.82744
AR172: 85 | AS172: 0.019 | AT172: 0.0304 | AU172: 0.012 | AV172: 0.0312 | BD172: 85 | BE172: 0.02 | BG172: 0.022 | BI172: 0.019 | BK172: 0.018 | BM172: 0.012 | BN172: 0.02772 | BP172: 12.5 | BQ172: 0.735 | BS172: 0.072 | BT172: 0.16632 | BU172: 0.33264
AR173: 90 | AS173: 0.019 | AT173: 0.0304 | AU173: 0.012 | AV173: 0.0312 | BD173: 90 | BE173: 0.02 | BG173: 0.022 | BI173: 0.019 | BK173: 0.014 | BM173: 0.012 | BN173: 0.02772 | BP173: 13 | BQ173: 0.772 | BS173: 0.037 | BT173: 0.08547 | BU173: 0.17094
AR174: 95 | AS174: 0.019 | AT174: 0.0304 | AU174: 0.012 | AV174: 0.0312 | BD174: 95 | BE174: 0.02 | BG174: 0.022 | BI174: 0.019 | BK174: 0.014 | BM174: 0.012 | BN174: 0.02772 | BP174: 13.5 | BQ174: 0.799 | BS174: 0.027 | BT174: 0.06237 | BU174: 0.12474
AR175: 100 | AS175: 0.019 | AT175: 0.0304 | AU175: 0.012 | AV175: 0.0312 | BD175: 100 | BE175: 0.02 | BG175: 0.015 | BI175: 0.019 | BK175: 0.014 | BM175: 0.012 | BN175: 0.02772 | BP175: 14 | BQ175: 0.82 | BS175: 0.021 | BT175: 0.04851 | BU175: 0.09702
AR176: 105 | AS176: 0.019 | AT176: 0.0304 | AU176: 0.012 | AV176: 0.0312 | BD176: 105 | BE176: 0.02 | BG176: 0.015 | BI176: 0.019 | BK176: 0.014 | BM176: 0.012 | BN176: 0.02772 | BP176: 16 | BQ176: 0.88 | BS176: 0.06 | BT176: 0.1386 | BU176: 0.0693
AR177: 110 | AS177: 0.019 | AT177: 0.0304 | AU177: 0.012 | AV177: 0.0312 | BD177: 110 | BE177: 0.02 | BG177: 0.015 | BI177: 0.019 | BK177: 0.014 | BM177: 0.012 | BN177: 0.02772 | BP177: 20 | BQ177: 0.952 | BS177: 0.072 | BT177: 0.16632 | BU177: 0.04158
AR178: 115 | AS178: 0.017 | AT178: 0.0272 | AU178: 0.012 | AV178: 0.0312 | BD178: 115 | BE178: 0.01 | BG178: 0.015 | BI178: 0.017 | BK178: 0.014 | BM178: 0.012 | BN178: 0.02772 | BP178: 24 | BQ178: 1 | BS178: 0.048 | BT178: 0.11088 | BU178: 0.02772
AR179: 120 | AS179: 0.013 | AT179: 0.0208 | AU179: 0.012 | AV179: 0.0312 | BD179: 120 | BE179: 0.01 | BG179: 0.013 | BI179: 0.013 | BK179: 0.014 | BM179: 0.012 | BN179: 0.02772 | BQ179: Peak Intensity (in/hr) | BS179: =IF(BR156="","",SUM(BS169:BS172)*E12) -> 
AR180: Total Rainfall (in) | AT180: =IF(AT156="","",SUM(AT156:AT179)) -> 1.8512 | AV180: =IF(AV156="","",SUM(AV156:AV179)) -> 3.0056 | BD180: Total Rainfall (in) | BF180: =IF(BF156="","",SUM(BF156:BF179)) ->  | BH180: =IF(BH156="","",SUM(BH156:BH179)) ->  | BJ180: =IF(BJ156="","",SUM(BJ156:BJ179)) ->  | BL180: =IF(BL156="","",SUM(BL156:BL179)) ->  | BN180: =IF(BN156="","",SUM(BN156:BN179)) -> 2.67036
AR181: Max Intensity (in/hr) | AT181: =SUM(AT157:AT168) -> 1.4464 | AV181: =SUM(AV157:AV168) -> 2.5948
BD183: CUHP 1 Hour Storm Depths
BD184: =SUM(BE156:BE167) -> 0.927 | BE184: =IF($BF$180="","",$E$12*BD184) ->  | BF184: =SUM(BG156:BG167) -> 0.911 | BG184: =IF($BH$180="","",$E$12*BF184) ->  | BH184: =SUM(BI156:BI167) -> 0.892 | BI184: =IF($BJ$180="","",$E$12*BH184) ->  | BJ184: =SUM(BK156:BK167) -> 0.942 | BK184: =IF($BL$180="","",$E$12*BJ184) ->  | BL184: =SUM(BM156:BM167) -> 0.968 | BM184: =IF($BN$180="","",$E$12*BL184) -> 2.23608
BD185: =SUM(BE157:BE168) -> 0.937 | BE185: =IF($BF$180="","",$E$12*BD185) ->  | BF185: =SUM(BG157:BG168) -> 0.921 | BG185: =IF($BH$180="","",$E$12*BF185) ->  | BH185: =SUM(BI157:BI168) -> 0.904 | BI185: =IF($BJ$180="","",$E$12*BH185) ->  | BJ185: =SUM(BK157:BK168) -> 0.961 | BK185: =IF($BL$180="","",$E$12*BJ185) ->  | BL185: =SUM(BM157:BM168) -> 0.998 | BM185: =IF($BN$180="","",$E$12*BL185) -> 2.30538
BD186: =SUM(BE158:BE169) -> 0.917 | BE186: =IF($BF$180="","",$E$12*BD186) ->  | BF186: =SUM(BG158:BG169) -> 0.914 | BG186: =IF($BH$180="","",$E$12*BF186) ->  | BH186: =SUM(BI158:BI169) -> 0.899 | BI186: =IF($BJ$180="","",$E$12*BH186) ->  | BJ186: =SUM(BK158:BK169) -> 0.95 | BK186: =IF($BL$180="","",$E$12*BJ186) ->  | BL186: =SUM(BM158:BM169) -> 0.988 | BM186: =IF($BN$180="","",$E$12*BL186) -> 2.28228
BD187: =SUM(BE159:BE170) -> 0.853 | BE187: =IF($BF$180="","",$E$12*BD187) ->  | BF187: =SUM(BG159:BG170) -> 0.852 | BG187: =IF($BH$180="","",$E$12*BF187) ->  | BH187: =SUM(BI159:BI170) -> 0.849 | BI187: =IF($BJ$180="","",$E$12*BH187) ->  | BJ187: =SUM(BK159:BK170) -> 0.924 | BK187: =IF($BL$180="","",$E$12*BJ187) ->  | BL187: =SUM(BM159:BM170) -> 0.962 | BM187: =IF($BN$180="","",$E$12*BL187) -> 2.22222
BD188: =SUM(BE160:BE171) -> 0.713 | BE188: =IF($BF$180="","",$E$12*BD188) ->  | BF188: =SUM(BG160:BG171) -> 0.721 | BG188: =IF($BH$180="","",$E$12*BF188) ->  | BH188: =SUM(BI160:BI171) -> 0.724 | BI188: =IF($BJ$180="","",$E$12*BH188) ->  | BJ188: =SUM(BK160:BK171) -> 0.862 | BK188: =IF($BL$180="","",$E$12*BJ188) ->  | BL188: =SUM(BM160:BM171) -> 0.894 | BM188: =IF($BN$180="","",$E$12*BL188) -> 2.06514
BD189: Max Intensity (in/hr) | BE189: =MAX(BE184:BE188,BG184:BG188,BI184:BI188,BK184:BK188,BM184:BM188) -> 2.30538
BD197: Green Ampt Infiltration Depth vs. NRCS Type II 24 Hour Rainfall
AN198: Sub-basin Identifier | AO198: =IF(E17="","",E17) -> 1 | BD198: Clay Loam | BG198: Loam | BJ198: Loamy Sand | BM198: Sand | BP198: Sandy Clay | BS198: Sandy Clay Loam | BV198: Sandy Loam | BY198: Silt Loam | CB198: Silty Clay | CE198: Silty Clay Loam | CH198: Clay Soil
AN199: Soil Group | AO199: =VLOOKUP(E18,$U$20:$V$30,2,FALSE) -> C | BD199: Rain | BE199: Infiltration | BG199: Rain | BH199: Infiltration | BJ199: Rain | BK199: Infiltration | BM199: Rain | BN199: Infiltration | BP199: Rain | BQ199: Infiltration | BS199: Rain | BT199: Infiltration | BV199: Rain | BW199: Infiltration | BY199: Rain | BZ199: Infiltration | CB199: Rain | CC199: Infiltration | CE199: Rain | CF199: Infiltration | CH199: Rain | CI199: Infiltration
AN200: ="User Input CUHP Method " &C12&" Actual Volume Infiltrated (in)" -> User Input CUHP Method 100-Year Event Actual Volume Infiltrated (in) | AO200: =IF(OR(E24="V",E24="C"),IF(E18="Clay",VLOOKUP($E$9,$CH$259:$CI$280,2,TRUE),IF(E18="Clay Loam",VLOOKUP($E$9,$BD$259:$BE$280,2,TRUE),IF(E18="Loam",VLOOKUP($E$9,$BG$259:$BH$280,2,TRUE),IF(E18="Loamy Sand",VLOOKUP($E$9,$BJ$259:$BK$280,2,TRUE),IF(E18="Sand",VLOOKUP($E$9,$BM$259:$BN$280,2,TRUE),AO208))))),0) -> 0.95296 | AP200: =IF(OR(F24="V",F24="C"),IF(F18="Clay",VLOOKUP($E$9,$CH$259:$CI$280,2,TRUE),IF(F18="Clay Loam",VLOOKUP($E$9,$BD$259:$BE$280,2,TRUE),IF(F18="Loam",VLOOKUP($E$9,$BG$259:$BH$280,2,TRUE),IF(F18="Loamy Sand",VLOOKUP($E$9,$BJ$259:$BK$280,2,TRUE),IF(F18="Sand",VLOOKUP($E$9,$BM$259:$BN$280,2,TRUE),AP208))))),0) -> 0 | AQ200: 0 | AR200: 0 | AS200: 0 | AT200: 0 | AU200: 0 | AV200: 0 | AW200: 0 | AX200: 0 | AY200: 0 | AZ200: 0 | BA200: 0 | BB200: 0 | BD200: (in) | BE200: (in) | BG200: (in) | BH200: (in) | BJ200: (in) | BK200: (in) | BM200: (in) | BN200: (in) | BP200: (in) | BQ200: (in) | BS200: (in) | BT200: (in) | BV200: (in) | BW200: (in) | BY200: (in) | BZ200: (in) | CB200: (in) | CC200: (in) | CE200: (in) | CF200: (in) | CH200: (in) | CI200: (in)
AN201: ="User Input NRCS Method " &C12&" Actual Volume Infiltrated (in)" -> User Input NRCS Method 100-Year Event Actual Volume Infiltrated (in) | AO201: =IF(OR(E24="V",E24="C"),IF($C$11="NRCS Method",IF(E18="Clay",VLOOKUP($E$12,$CH$201:$CI$251,2,TRUE),IF(E18="Clay Loam",VLOOKUP($E$12,$BD$201:$BE$251,2,TRUE),IF(E18="Loam",VLOOKUP($E$12,$BG$201:$BH$251,2,TRUE),IF(E18="Loamy Sand",VLOOKUP($E$12,$BJ$201:$BK$251,2,TRUE),IF(E18="Sand",VLOOKUP($E$12,$BM$201:$BN$251,2,TRUE),AO206))))),0),0) -> 0 | AP201: =IF(OR(F24="V",F24="C"),IF($C$11="NRCS Method",IF(F18="Clay",VLOOKUP($E$12,$CH$201:$CI$251,2,TRUE),IF(F18="Clay Loam",VLOOKUP($E$12,$BD$201:$BE$251,2,TRUE),IF(F18="Loam",VLOOKUP($E$12,$BG$201:$BH$251,2,TRUE),IF(F18="Loamy Sand",VLOOKUP($E$12,$BJ$201:$BK$251,2,TRUE),IF(F18="Sand",VLOOKUP($E$12,$BM$201:$BN$251,2,TRUE),AP206))))),0),0) -> 0 | AQ201: 0 | AR201: 0 | AS201: 0 | AT201: 0 | AU201: 0 | AV201: 0 | AW201: 0 | AX201: 0 | AY201: 0 | AZ201: 0 | BA201: 0 | BB201: 0 | BD201: 0.5 | BE201: 0.356692913 | BG201: 0.5 | BH201: 0.4999999995 | BJ201: 0.5 | BK201: 0.4999999995 | BM201: 0.5 | BN201: 0.4999999995 | BP201: 0.5 | BQ201: 0.3444881886 | BS201: 0.5 | BT201: 0.5 | BV201: 0.5 | BW201: 0.4999999995 | BY201: 0.5 | BZ201: 0.4999999995 | CB201: 0.5 | CC201: 0.3578740154 | CE201: 0.5 | CF201: 0 | CH201: 0.5 | CI201: 0.3366141729
AN202: CUHP 10-Year Event Volume Infiltrated (in) | AO202: =IF(OR(E24="V",E24="C"),IF(E18="Clay",VLOOKUP($E$9,$CH$259:$CI$280,2,TRUE),IF(E18="Clay Loam",VLOOKUP($E$9,$BD$259:$BE$280,2,TRUE),IF(E18="Loam",VLOOKUP($E$9,$BG$259:$BH$280,2,TRUE),IF(E18="Loamy Sand",VLOOKUP($E$9,$BJ$259:$BK$280,2,TRUE),IF(E18="Sand",VLOOKUP($E$9,$BM$259:$BN$280,2,TRUE),AO208))))),0) -> 0.95296 | AP202: =IF(OR(F24="V",F24="C"),IF(F18="Clay",VLOOKUP($E$9,$CH$259:$CI$280,2,TRUE),IF(F18="Clay Loam",VLOOKUP($E$9,$BD$259:$BE$280,2,TRUE),IF(F18="Loam",VLOOKUP($E$9,$BG$259:$BH$280,2,TRUE),IF(F18="Loamy Sand",VLOOKUP($E$9,$BJ$259:$BK$280,2,TRUE),IF(F18="Sand",VLOOKUP($E$9,$BM$259:$BN$280,2,TRUE),AP208))))),0) -> 0 | AQ202: 0 | AR202: 0 | AS202: 0 | AT202: 0 | AU202: 0 | AV202: 0 | AW202: 0 | AX202: 0 | AY202: 0 | AZ202: 0 | BA202: 0 | BB202: 0 | BD202: 0.55 | BE202: 0.400665 | BG202: 0.55 | BH202: 0.48726 | BJ202: 0.55 | BK202: 0.55 | BM202: 0.55 | BN202: 0.55 | BP202: 0.55 | BQ202: 0.39117 | BS202: 0.55 | BT202: 0.5 | BV202: 0.55 | BW202: 0.55 | BY202: 0.55 | BZ202: 0.55 | CB202: 0.55 | CC202: 0.395545 | CE202: 0.55 | CF202: 0.5 | CH202: 0.55 | CI202: 0.3200019707
AN203: CUHP 100-Year Event Volume Infiltrated (in) | AO203: =IF(OR(E24="V",E24="C"),IF(E18="Clay",VLOOKUP($E$10,$CH$287:$CI$307,2,TRUE),IF(E18="Clay Loam",VLOOKUP($E$10,$BD$287:$BE$307,2,TRUE),IF(E18="Loam",VLOOKUP($E$10,$BG$287:$BH$307,2,TRUE),IF(E18="Loamy Sand",VLOOKUP($E$10,$BJ$287:$BK$307,2,TRUE),IF(E18="Sand",VLOOKUP($E$10,$BM$287:$BN$307,2,TRUE),AO209))))),0) -> 0.9463 | AP203: =IF(OR(F24="V",F24="C"),IF(F18="Clay",VLOOKUP($E$10,$CH$287:$CI$307,2,TRUE),IF(F18="Clay Loam",VLOOKUP($E$10,$BD$287:$BE$307,2,TRUE),IF(F18="Loam",VLOOKUP($E$10,$BG$287:$BH$307,2,TRUE),IF(F18="Loamy Sand",VLOOKUP($E$10,$BJ$287:$BK$307,2,TRUE),IF(F18="Sand",VLOOKUP($E$10,$BM$287:$BN$307,2,TRUE),AP209))))),0) -> 0 | AQ203: 0 | AR203: 0 | AS203: 0 | AT203: 0 | AU203: 0 | AV203: 0 | AW203: 0 | AX203: 0 | AY203: 0 | AZ203: 0 | BA203: 0 | BB203: 0 | BD203: 0.6 | BE203: 0.41788 | BG203: 0.6 | BH203: 0.50502 | BJ203: 0.6 | BK203: 0.6 | BM203: 0.6 | BN203: 0.6 | BP203: 0.6 | BQ203: 0.40664 | BS203: 0.6 | BT203: 0.5 | BV203: 0.6 | BW203: 0.6 | BY203: 0.6 | BZ203: 0.6 | CB203: 0.6 | CC203: 0.41314 | CE203: 0.6 | CF203: 0.5 | CH203: 0.6 | CI203: 0.3562857149
BD204: 0.65 | BE204: 0.435095 | BG204: 0.65 | BH204: 0.52278 | BJ204: 0.65 | BK204: 0.65 | BM204: 0.65 | BN204: 0.65 | BP204: 0.65 | BQ204: 0.42211 | BS204: 0.65 | BT204: 0.5 | BV204: 0.65 | BW204: 0.65 | BY204: 0.65 | BZ204: 0.65 | CB204: 0.65 | CC204: 0.430735 | CE204: 0.65 | CF204: 0.5 | CH204: 0.65 | CI204: 0.389663524
BD205: 0.7 | BE205: 0.45231 | BG205: 0.7 | BH205: 0.54054 | BJ205: 0.7 | BK205: 0.7 | BM205: 0.7 | BN205: 0.7 | BP205: 0.7 | BQ205: 0.43758 | BS205: 0.7 | BT205: 0.5 | BV205: 0.7 | BW205: 0.7 | BY205: 0.7 | BZ205: 0.7 | CB205: 0.7 | CC205: 0.44833 | CE205: 0.7 | CF205: 0.5 | CH205: 0.7 | CI205: 0.4205665484
AN206: NRCS | AO206: =IF(OR(E24="V",E24="C"),IF(E18="Sandy Loam",VLOOKUP($E$12,$BV$201:$BW$251,2,TRUE),IF(E18="Silt Loam",VLOOKUP($E$12,$BY$201:$BZ$251,2,TRUE),IF(E18="Silty Clay",VLOOKUP($E$12,$CB$201:$CC$251,2,TRUE),IF(E18="Silty Clay Loam",VLOOKUP($E$12,$CE$201:$CF$251,2,TRUE),IF(E18="Sandy Clay",VLOOKUP($E$12,$BP$201:$BQ$251,2,TRUE),IF(E18="Sandy Clay Loam",VLOOKUP($E$12,$BS$201:$BT$251,2,TRUE),0)))))),0) -> 0 | AP206: =IF(OR(F24="V",F24="C"),IF(F18="Sandy Loam",VLOOKUP($E$12,$BV$201:$BW$251,2,TRUE),IF(F18="Silt Loam",VLOOKUP($E$12,$BY$201:$BZ$251,2,TRUE),IF(F18="Silty Clay",VLOOKUP($E$12,$CB$201:$CC$251,2,TRUE),IF(F18="Silty Clay Loam",VLOOKUP($E$12,$CE$201:$CF$251,2,TRUE),IF(F18="Sandy Clay",VLOOKUP($E$12,$BP$201:$BQ$251,2,TRUE),IF(F18="Sandy Clay Loam",VLOOKUP($E$12,$BS$201:$BT$251,2,TRUE),0)))))),0) -> 0 | AQ206: 0 | AR206: 0 | AS206: 0 | AT206: 0 | AU206: 0 | AV206: 0 | AW206: 0 | AX206: 0 | AY206: 0 | AZ206: 0 | BA206: 0 | BB206: =IF(OR(R24="V",R24="C"),IF(R18="Sandy Loam",VLOOKUP($E$12,$BV$201:$BW$251,2,TRUE),IF(R18="Silt Loam",VLOOKUP($E$12,$BY$201:$BZ$251,2,TRUE),IF(R18="Silty Clay",VLOOKUP($E$12,$CB$201:$CC$251,2,TRUE),IF(R18="Silty Clay Loam",VLOOKUP($E$12,$CE$201:$CF$251,2,TRUE),IF(R18="Sandy Clay",VLOOKUP($E$12,$BP$201:$BQ$251,2,TRUE),IF(R18="Sandy Clay Loam",VLOOKUP($E$12,$BS$201:$BT$251,2,TRUE),0)))))),0) -> 0 | BD206: 0.75 | BE206: 0.4653543302 | BG206: 0.75 | BH206: 0.5196850388 | BJ206: 0.75 | BK206: 0.7496062984 | BM206: 0.75 | BN206: 0.7480314953 | BP206: 0.75 | BQ206: 0.4425196846 | BS206: 0.75 | BT206: 0.5023622042 | BV206: 0.75 | BW206: 0.7496062984 | BY206: 0.75 | BZ206: 0.7496062984 | CB206: 0.75 | CC206: 0.4681102357 | CE206: 0.75 | CF206: 0.51023622 | CH206: 0.75 | CI206: 0.430708661
AN207: CUHP for User Defined Event (if applicable) | AO207: =IF(OR(E24="V",E24="C"),IF(E18="Sandy Loam",VLOOKUP($E$12,$BV$201:$BW$251,2,TRUE),IF(E18="Silt Loam",VLOOKUP($E$12,$BY$201:$BZ$251,2,TRUE),IF(E18="Silty Clay",VLOOKUP($E$12,$CB$201:$CC$251,2,TRUE),IF(E18="Silty Clay Loam",VLOOKUP($E$12,$CE$201:$CF$251,2,TRUE),IF(E18="Sandy Clay",VLOOKUP($E$12,$BP$201:$BQ$251,2,TRUE),IF(E18="Sandy Clay Loam",VLOOKUP($E$12,$BS$201:$BT$251,2,TRUE),0)))))),0) -> 0 | AP207: =IF(OR(F24="V",F24="C"),IF(F18="Sandy Loam",VLOOKUP($E$12,$BV$201:$BW$251,2,TRUE),IF(F18="Silt Loam",VLOOKUP($E$12,$BY$201:$BZ$251,2,TRUE),IF(F18="Silty Clay",VLOOKUP($E$12,$CB$201:$CC$251,2,TRUE),IF(F18="Silty Clay Loam",VLOOKUP($E$12,$CE$201:$CF$251,2,TRUE),IF(F18="Sandy Clay",VLOOKUP($E$12,$BP$201:$BQ$251,2,TRUE),IF(F18="Sandy Clay Loam",VLOOKUP($E$12,$BS$201:$BT$251,2,TRUE),0)))))),0) -> 0 | AQ207: 0 | AR207: 0 | AS207: 0 | AT207: 0 | AU207: 0 | AV207: 0 | AW207: 0 | AX207: 0 | AY207: 0 | AZ207: 0 | BA207: 0 | BB207: 0 | BD207: 0.8 | BE207: 0.48674 | BG207: 0.8 | BH207: 0.57606 | BJ207: 0.8 | BK207: 0.8 | BM207: 0.8 | BN207: 0.8 | BP207: 0.8 | BQ207: 0.46852 | BS207: 0.8 | BT207: 0.52748 | BV207: 0.8 | BW207: 0.8 | BY207: 0.8 | BZ207: 0.8 | CB207: 0.8 | CC207: 0.48352 | CE207: 0.8 | CF207: 0.53744 | CH207: 0.8 | CI207: 0.4762491391
AN208: CUHP 10-Year Event | AO208: =IF(OR(E24="V",E24="C"),IF(E18="Sandy Loam",VLOOKUP($E$9,$BV$259:$BW$280,2,TRUE),IF(E18="Silt Loam",VLOOKUP($E$9,$BY$259:$BZ$280,2,TRUE),IF(E18="Silty Clay",VLOOKUP($E$9,$CB$259:$CC$280,2,TRUE),IF(E18="Silty Clay Loam",VLOOKUP($E$9,$CE$259:$CF$280,2,TRUE),IF(E18="Sandy Clay",VLOOKUP($E$9,$BP$259:$BQ$280,2,TRUE),IF(E18="Sandy Clay Loam",VLOOKUP($E$9,$BS$259:$BT$280,2,TRUE),0)))))),0) -> 0 | AP208: =IF(OR(F24="V",F24="C"),IF(F18="Sandy Loam",VLOOKUP($E$9,$BV$259:$BW$280,2,TRUE),IF(F18="Silt Loam",VLOOKUP($E$9,$BY$259:$BZ$280,2,TRUE),IF(F18="Silty Clay",VLOOKUP($E$9,$CB$259:$CC$280,2,TRUE),IF(F18="Silty Clay Loam",VLOOKUP($E$9,$CE$259:$CF$280,2,TRUE),IF(F18="Sandy Clay",VLOOKUP($E$9,$BP$259:$BQ$280,2,TRUE),IF(F18="Sandy Clay Loam",VLOOKUP($E$9,$BS$259:$BT$280,2,TRUE),0)))))),0) -> 0 | AQ208: 0 | AR208: 0 | AS208: 0 | AT208: 0 | AU208: 0 | AV208: 0 | AW208: 0 | AX208: 0 | AY208: 0 | AZ208: 0 | BA208: 0 | BB208: 0 | BD208: 0.85 | BE208: 0.503955 | BG208: 0.85 | BH208: 0.59382 | BJ208: 0.85 | BK208: 0.85 | BM208: 0.85 | BN208: 0.85 | BP208: 0.85 | BQ208: 0.48399 | BS208: 0.85 | BT208: 0.545785 | BV208: 0.85 | BW208: 0.85 | BY208: 0.85 | BZ208: 0.85 | CB208: 0.85 | CC208: 0.501115 | CE208: 0.85 | CF208: 0.55608 | CH208: 0.85 | CI208: 0.5015296064
AN209: CUHP 100-Year Event | AO209: =IF(OR(E24="V",E24="C"),IF(E18="Sandy Loam",VLOOKUP($E$10,$BV$287:$BW$307,2,TRUE),IF(E18="Silt Loam",VLOOKUP($E$10,$BY$287:$BZ$307,2,TRUE),IF(E18="Silty Clay",VLOOKUP($E$10,$CB$287:$CC$307,2,TRUE),IF(E18="Silty Clay Loam",VLOOKUP($E$10,$CE$287:$CF$307,2,TRUE),IF(E18="Sandy Clay",VLOOKUP($E$10,$BP$287:$BQ$307,2,TRUE),IF(E18="Sandy Clay Loam",VLOOKUP($E$10,$BS$287:$BT$307,2,TRUE),0)))))),0) -> 0 | AP209: =IF(OR(F24="V",F24="C"),IF(F18="Sandy Loam",VLOOKUP($E$10,$BV$287:$BW$307,2,TRUE),IF(F18="Silt Loam",VLOOKUP($E$10,$BY$287:$BZ$307,2,TRUE),IF(F18="Silty Clay",VLOOKUP($E$10,$CB$287:$CC$307,2,TRUE),IF(F18="Silty Clay Loam",VLOOKUP($E$10,$CE$287:$CF$307,2,TRUE),IF(F18="Sandy Clay",VLOOKUP($E$10,$BP$287:$BQ$307,2,TRUE),IF(F18="Sandy Clay Loam",VLOOKUP($E$10,$BS$287:$BT$307,2,TRUE),0)))))),0) -> 0 | AQ209: 0 | AR209: 0 | AS209: 0 | AT209: 0 | AU209: 0 | AV209: 0 | AW209: 0 | AX209: 0 | AY209: 0 | AZ209: 0 | BA209: 0 | BB209: 0 | BD209: 0.9 | BE209: 0.52117 | BG209: 0.9 | BH209: 0.61158 | BJ209: 0.9 | BK209: 0.9 | BM209: 0.9 | BN209: 0.9 | BP209: 0.9 | BQ209: 0.49946 | BS209: 0.9 | BT209: 0.56409 | BV209: 0.9 | BW209: 0.9 | BY209: 0.9 | BZ209: 0.9 | CB209: 0.9 | CC209: 0.51871 | CE209: 0.9 | CF209: 0.57472 | CH209: 0.9 | CI209: 0.525364665
AO210: This table contains values for soil types not included in the primarty table above. The number of nested if statements in the first table has reached excel's limit therefore this table is needed for the remaining soils. | BD210: 0.95 | BE210: 0.538385 | BG210: 0.95 | BH210: 0.62934 | BJ210: 0.95 | BK210: 0.95 | BM210: 0.95 | BN210: 0.95 | BP210: 0.95 | BQ210: 0.51493 | BS210: 0.95 | BT210: 0.582395 | BV210: 0.95 | BW210: 0.95 | BY210: 0.95 | BZ210: 0.95 | CB210: 0.95 | CC210: 0.536305 | CE210: 0.95 | CF210: 0.59336 | CH210: 0.95 | CI210: 0.5479106962
BD211: 1 | BE211: 0.5570866136 | BG211: 1 | BH211: 0.6397637789 | BJ211: 1 | BK211: 0.999999999 | BM211: 1 | BN211: 0.999999999 | BP211: 1 | BQ211: 0.5311023617 | BS211: 1 | BT211: 0.6055118104 | BV211: 1 | BW211: 0.999999999 | BY211: 1 | BZ211: 0.999999999 | CB211: 1 | CC211: 0.5606299207 | CE211: 1 | CF211: 0.6196850387 | CH211: 1 | CI211: 0.5185039365
BD212: 1.05 | BE212: 0.572815 | BG212: 1.05 | BH212: 0.66486 | BJ212: 1.05 | BK212: 1.05 | BM212: 1.05 | BN212: 1.05 | BP212: 1.05 | BQ212: 0.54587 | BS212: 1.05 | BT212: 0.619005 | BV212: 1.05 | BW212: 1.05 | BY212: 1.05 | BZ212: 1.05 | CB212: 1.05 | CC212: 0.571495 | CE212: 1.05 | CF212: 0.63064 | CH212: 1.05 | CI212: 0.5896454985
BD213: 1.1 | BE213: 0.59003 | BG213: 1.1 | BH213: 0.68262 | BJ213: 1.1 | BK213: 1.1 | BM213: 1.1 | BN213: 1.1 | BP213: 1.1 | BQ213: 0.56134 | BS213: 1.1 | BT213: 0.63731 | BV213: 1.1 | BW213: 1.1 | BY213: 1.1 | BZ213: 1.1 | CB213: 1.1 | CC213: 0.58909 | CE213: 1.1 | CF213: 0.64928 | CH213: 1.1 | CI213: 0.609044345
BD214: 1.15 | BE214: 0.607245 | BG214: 1.15 | BH214: 0.70038 | BJ214: 1.15 | BK214: 1.15 | BM214: 1.15 | BN214: 1.15 | BP214: 1.15 | BQ214: 0.57681 | BS214: 1.15 | BT214: 0.655615 | BV214: 1.15 | BW214: 1.15 | BY214: 1.15 | BZ214: 1.15 | CB214: 1.15 | CC214: 0.606685 | CE214: 1.15 | CF214: 0.66792 | CH214: 1.15 | CI214: 0.62758073
BD215: 1.2 | BE215: 0.62446 | BG215: 1.2 | BH215: 0.71814 | BJ215: 1.2 | BK215: 1.2 | BM215: 1.2 | BN215: 1.2 | BP215: 1.2 | BQ215: 0.59228 | BS215: 1.2 | BT215: 0.67392 | BV215: 1.2 | BW215: 1.2 | BY215: 1.2 | BZ215: 1.2 | CB215: 1.2 | CC215: 0.62428 | CE215: 1.2 | CF215: 0.68656 | CH215: 1.2 | CI215: 0.6453280892
BD216: 1.25 | BE216: 0.6444881883 | BG216: 1.25 | BH216: 0.7385826764 | BJ216: 1.25 | BK216: 1.249212597 | BM216: 1.25 | BN216: 1.248031495 | BP216: 1.25 | BQ216: 0.60775 | BS216: 1.25 | BT216: 0.6976377946 | BV216: 1.25 | BW216: 1.249212597 | BY216: 1.25 | BZ216: 1.249212597 | CB216: 1.25 | CC216: 0.6480314954 | CE216: 1.25 | CF216: 0.7137795268 | CH216: 1.25 | CI216: 0.6623508609
BD217: 1.3 | BE217: 0.65889 | BG217: 1.3 | BH217: 0.75366 | BJ217: 1.3 | BK217: 1.3 | BM217: 1.3 | BN217: 1.3 | BP217: 1.3 | BQ217: 0.62322 | BS217: 1.3 | BT217: 0.71053 | BV217: 1.3 | BW217: 0.9428 | BY217: 1.3 | BZ217: 0.94196 | CB217: 1.3 | CC217: 0.65947 | CE217: 1.3 | CF217: 0.72384 | CH217: 1.3 | CI217: 0.6787058983
BD218: 1.35 | BE218: 0.676105 | BG218: 1.35 | BH218: 0.77142 | BJ218: 1.35 | BK218: 1.35 | BM218: 1.35 | BN218: 1.35 | BP218: 1.35 | BQ218: 0.63869 | BS218: 1.35 | BT218: 0.728835 | BV218: 1.35 | BW218: 0.96345 | BY218: 1.35 | BZ218: 0.96262 | CB218: 1.35 | CC218: 0.677065 | CE218: 1.35 | CF218: 0.74248 | CH218: 1.35 | CI218: 0.6944436151
BD219: 1.4 | BE219: 0.69332 | BG219: 1.4 | BH219: 0.78918 | BJ219: 1.4 | BK219: 1.4 | BM219: 1.4 | BN219: 1.4 | BP219: 1.4 | BQ219: 0.65416 | BS219: 1.4 | BT219: 0.74714 | BV219: 1.4 | BW219: 0.9841 | BY219: 1.4 | BZ219: 0.98328 | CB219: 1.4 | CC219: 0.69466 | CE219: 1.4 | CF219: 0.76112 | CH219: 1.4 | CI219: 0.7096089227
BD220: 1.45 | BE220: 0.710535 | BG220: 1.45 | BH220: 0.80694 | BJ220: 1.45 | BK220: 1.45 | BM220: 1.45 | BN220: 1.45 | BP220: 1.45 | BQ220: 0.66963 | BS220: 1.45 | BT220: 0.765445 | BV220: 1.45 | BW220: 1.00475 | BY220: 1.45 | BZ220: 1.00394 | CB220: 1.45 | CC220: 0.712255 | CE220: 1.45 | CF220: 0.77976 | CH220: 1.45 | CI220: 0.724242003
BD221: 1.5 | BE221: 0.7322834638 | BG221: 1.5 | BH221: 0.8318897629 | BJ221: 1.5 | BK221: 1.501574802 | BM221: 1.5 | BN221: 1.499999998 | BP221: 1.5 | BQ221: 0.7039370072 | BS221: 1.5 | BT221: 0.7881889756 | BV221: 1.5 | BW221: 1.003149605 | BY221: 1.5 | BZ221: 1.002755904 | CB221: 1.5 | CC221: 0.7362204717 | CE221: 1.5 | CF221: 0.8055118102 | CH221: 1.5 | CI221: 0.7181102355
BD222: 1.55 | BE222: 0.744965 | BG222: 1.55 | BH222: 0.84246 | BJ222: 1.55 | BK222: 1.55 | BM222: 1.55 | BN222: 1.55 | BP222: 1.55 | BQ222: 0.70057 | BS222: 1.55 | BT222: 0.802055 | BV222: 1.55 | BW222: 1.04605 | BY222: 1.55 | BZ222: 1.04526 | CB222: 1.55 | CC222: 0.747445 | CE222: 1.55 | CF222: 0.81704 | CH222: 1.55 | CI222: 0.7520523062
BD223: 1.6 | BE223: 0.76218 | BG223: 1.6 | BH223: 0.86022 | BJ223: 1.6 | BK223: 1.6 | BM223: 1.6 | BN223: 1.6 | BP223: 1.6 | BQ223: 0.71604 | BS223: 1.6 | BT223: 0.82036 | BV223: 1.6 | BW223: 1.0667 | BY223: 1.6 | BZ223: 1.06592 | CB223: 1.6 | CC223: 0.76504 | CE223: 1.6 | CF223: 0.83568 | CH223: 1.6 | CI223: 0.7652915134
BD224: 1.65 | BE224: 0.779395 | BG224: 1.65 | BH224: 0.87798 | BJ224: 1.65 | BK224: 1.65 | BM224: 1.65 | BN224: 1.65 | BP224: 1.65 | BQ224: 0.73151 | BS224: 1.65 | BT224: 0.838665 | BV224: 1.65 | BW224: 1.08735 | BY224: 1.65 | BZ224: 1.08658 | CB224: 1.65 | CC224: 0.782635 | CE224: 1.65 | CF224: 0.85432 | CH224: 1.65 | CI224: 0.7781232951
BD225: 1.7 | BE225: 0.79661 | BG225: 1.7 | BH225: 0.89574 | BJ225: 1.7 | BK225: 1.7 | BM225: 1.7 | BN225: 1.7 | BP225: 1.7 | BQ225: 0.74698 | BS225: 1.7 | BT225: 0.85697 | BV225: 1.7 | BW225: 1.108 | BY225: 1.7 | BZ225: 1.10724 | CB225: 1.7 | CC225: 0.80023 | CE225: 1.7 | CF225: 0.87296 | CH225: 1.7 | CI225: 0.7905719807
BD226: 1.75 | BE226: 0.8157480307 | BG226: 1.75 | BH226: 0.9188976369 | BJ226: 1.75 | BK226: 1.749606297 | BM226: 1.75 | BN226: 1.748031494 | BP226: 1.75 | BQ226: 0.8149606291 | BS226: 1.75 | BT226: 0.8732283456 | BV226: 1.75 | BW226: 1.133464566 | BY226: 1.75 | BZ226: 1.132283463 | CB226: 1.75 | CC226: 0.8196850385 | CE226: 1.75 | CF226: 0.8913385818 | CH226: 1.75 | CI226: 0.787401574
BD227: 1.8 | BE227: 0.83104 | BG227: 1.8 | BH227: 0.93126 | BJ227: 1.8 | BK227: 1.8 | BM227: 1.8 | BN227: 1.8 | BP227: 1.8 | BQ227: 0.77792 | BS227: 1.8 | BT227: 0.89358 | BV227: 1.8 | BW227: 1.1493 | BY227: 1.8 | BZ227: 1.14856 | CB227: 1.8 | CC227: 0.83542 | CE227: 1.8 | CF227: 0.91024 | CH227: 1.8 | CI227: 0.8144070393
BD228: 1.85 | BE228: 0.848255 | BG228: 1.85 | BH228: 0.94902 | BJ228: 1.85 | BK228: 1.85 | BM228: 1.85 | BN228: 1.85 | BP228: 1.85 | BQ228: 0.79339 | BS228: 1.85 | BT228: 0.911885 | BV228: 1.85 | BW228: 1.16995 | BY228: 1.85 | BZ228: 1.16922 | CB228: 1.85 | CC228: 0.853015 | CE228: 1.85 | CF228: 0.92888 | CH228: 1.85 | CI228: 0.8258324115
BD229: 1.9 | BE229: 0.86547 | BG229: 1.9 | BH229: 0.96678 | BJ229: 1.9 | BK229: 1.9 | BM229: 1.9 | BN229: 1.9 | BP229: 1.9 | BQ229: 0.80886 | BS229: 1.9 | BT229: 0.93019 | BV229: 1.9 | BW229: 1.1906 | BY229: 1.9 | BZ229: 1.18988 | CB229: 1.9 | CC229: 0.87061 | CE229: 1.9 | CF229: 0.94752 | CH229: 1.9 | CI229: 0.8369530705
BD230: 1.95 | BE230: 0.882685 | BG230: 1.95 | BH230: 0.98454 | BJ230: 1.95 | BK230: 1.95 | BM230: 1.95 | BN230: 1.95 | BP230: 1.95 | BQ230: 0.82433 | BS230: 1.95 | BT230: 0.948495 | BV230: 1.95 | BW230: 1.21125 | BY230: 1.95 | BZ230: 1.21054 | CB230: 1.95 | CC230: 0.888205 | CE230: 1.95 | CF230: 0.96616 | CH230: 1.95 | CI230: 0.8477848484
BD231: 2 | BE231: 0.9409448809 | BG231: 2 | BH231: 1.005905511 | BJ231: 2 | BK231: 1.998818896 | BM231: 2 | BN231: 1.999999998 | BP231: 2 | BQ231: 0.8398 | BS231: 2 | BT231: 0.9586614163 | BV231: 2 | BW231: 1.24566929 | BY231: 2 | BZ231: 1.244488188 | CB231: 2 | CC231: 0.9058 | CE231: 2 | CF231: 0.9771653533 | CH231: 2 | CI231: 0.8531496054
BD232: 2.05 | BE232: 0.917115 | BG232: 2.05 | BH232: 1.02006 | BJ232: 2.05 | BK232: 1.39119 | BM232: 2.05 | BN232: 2.05 | BP232: 2.05 | BQ232: 0.85527 | BS232: 2.05 | BT232: 0.985105 | BV232: 2.05 | BW232: 1.25255 | BY232: 2.05 | BZ232: 1.25186 | CB232: 2.05 | CC232: 0.923395 | CE232: 2.05 | CF232: 1.00344 | CH232: 2.05 | CI232: 0.8686391937
... 70 more rows

Sheet BMP Selection Tool
S1: Worksheet Protected
B2: Design Procedure Form: BMP Selection Tool
D3: =INTRO!B4 -> UD-BMP (Version 3.07, March 2018) | O3: Sheet 1 of 1
C4: Designer:
C5: Company:
C6: Date: | E6: =NOW() -> 2018-04-16T10:31:13.970
C7: Project:
C8: Location:
C11: 1. | D11: To identify potential BMPs, what best describes
D12: the type of site?
C17: 2. | D17: Does the typical section include a parking lane, shoulder,
D18: median, or otherwise allow for surface BMPs?
C22: 3. | D22: Is the site comprised of Hydrologic Soil Group A or B soils?
C27: 4. | D27: Is the tributary impervious area1 greater than 1 acre?
C32: 5. | D32: Is the depth of bedrock greater than 5 feet?
C37: 6. | D37: Is the tributary impervious area1 greater than 5 acres?
C42: 7. | D42: Is a water source available for use?
D43: (baseflow or groundwater)
C47: 8. | D47: Is the BMP in a developing watershed?
C52: 9. | D52: Are BMPs allowed in the right-of-way?
C57: 10. | D57: Does the community have an established Fee in Lieu
D58: Program in place?
C62: 11. | D62: Step 1 of Four Step Process:
D63: MDCIA / Volume Reduction (Not WQCV) BMPs
C70: 12. | D70: Step 2 of Four Step Process:
D71: WQCV BMPs
D79: Notes: | E79: 1. 'Tributary impervious area' refers to the impervious area draining to the BMP, not the total area of the project site.

Sheet Runoff Reduction
R1: Worksheet Unprotected | S1: Worksheet Protected
B2: Design Procedure Form: Runoff Reduction
B3: =INTRO!B4 -> UD-BMP (Version 3.07, March 2018) | P3: Sheet 1 of 1
C4: Designer:
C5: Company:
C6: Date: | E6: =NOW() -> 2018-04-16T10:31:13.970 | U6: Area Type
C7: Project: | U7: DCIA
C8: Location: | U8: UIA:RPA
U9: SPA
C11: SITE INFORMATION (User Input in Blue Cells) | U11: BMP Type
F12: WQCV Rainfall Depth | G12: 0.6 | H12: inches | U12: None
F13: Depth of Average Runoff Producing Storm, d6 = | G13: 0.43 | H13: inches (for Watersheds Outside of the Denver Region, Figure 3-1 in USDCM Vol. 3) | U13: RG
U14: EDB
D15: Area Type | U15: SF
D16: Area ID | U16: RP
D17: Downstream Design Point ID | U17: CWP
D18: Downstream BMP Type
D19: DCIA (ft2)
D20: UIA (ft2)
D21: RPA (ft2)
D22: SPA (ft2)
D23: HSG A (%)
D24: HSG B (%)
D25: HSG C/D (%)
D26: Average Slope of RPA (ft/ft)
D27: UIA:RPA Interface Width (ft)
U28: UIA:RPA Runoff Equation based on Multivariable SWMM Analysis
U29: (Technical Memorandum - March 15, 2018)
C30: CALCULATED RUNOFF RESULTS
D31: Area ID | E31: =IF(E16="","",E16) ->  | U31: Runoff (in) = C0+(C1*(0.95 -P2(in)))+(C2*Area(ft2))+(C3*L/W Ratio)+(C4*Slope(ft/ft))+(C5*UIA/Area)+(C6*(UIA/Area)^2)
D32: UIA:RPA Area (ft2) | E32: =IF(OR(E15="DCIA",E15="SPA"),"--",IF(OR(E15="",E20="",E21=""),"",E20+E21)) -> 
D33: L / W Ratio | E33: =IF(OR(E15="DCIA",E15="SPA"),"--",IF(OR(E15="",E20="",E21="",E27=""),"", IF(((E20/E27)+(E21/E27))/E27<0.0625,0.0625,IF(((E20/E27)+(E21/E27))/E27>16,16,((E20/E27)+(E21/E27))/E27)))) ->  | F33: =IF(OR(F15="DCIA",F15="SPA"),"--",IF(OR(F15="",F20="",F21="",F27=""),"", IF(((F20/F27)+(F21/F27))/F27<0.0625,0.0625,IF(((F20/F27)+(F21/F27))/F27>16,16,((F20/F27)+(F21/F27))/F27)))) ->  | U33: Soil Type | V33: Constant | W33: P2 (in) | X33: Area (ft2) | Y33: L/W Ratio | Z33: Slope (ft/ft) | AA33: UIA/Area | AB33: (UIA/Area)2
D34: UIA / Area | E34: =IF(OR(E15="DCIA",E15="SPA"),"--",IF(OR(E15="",E20="",E32=""),"",E20/E32)) ->  | V34: C0 | W34: C1 | X34: C2 | Y34: C3 | Z34: C4 | AA34: C5 | AB34: C6
D35: Runoff (in) | E35: =IF(OR(RR_P2="",E15=""),"", IF(E15="SPA",0, IF(E15="DCIA",RR_P2-0.1, IF(OR(E32="",E33="",E26="",E34="",SUM(E23:E25)<>1),"", IF(E34<0.3,MIN((RR_P2-0.1)*E34,MAX(0,E25*(RR_CD_C0+(RR_CD_C1*(0.95-RR_P2))+(RR_CD_C2*E32)+(RR_CD_C3*E33)+(RR_CD_C4*E26)+(RR_CD_C5*E34)+(RR_CD_C6*E34^2)))), IF(E34<0.6,MIN((RR_P2-0.1)*E34,MAX(0,E24*(RR_B_C0+(RR_B_C1*(0.95-RR_P2))+(RR_B_C2*E32)+(RR_B_C3*E33)+(RR_B_C4*E26)+(RR_B_C5*E34)+(RR_B_C6*E34^2)))+MAX(0,E25*(RR_CD_C0+(RR_CD_C1*(0.95-RR_P2))+(RR_CD_C2*E32)+(RR_CD_C3*E33)+(RR_CD_C4*E26)+(RR_CD_C5*E34)+(RR_CD_C6*E34^2)))), MIN((RR_P2-0.1)*E34,MAX(0,E23*(RR_A_C0+(RR_A_C1*(0.95-RR_P2))+(RR_A_C2*E32)+(RR_A_C3*E33)+(RR_A_C4*E26)+(RR_A_C5*E34)+(RR_A_C6*E34^2)))+MAX(0,E24*(RR_B_C0+(RR_B_C1*(0.95-RR_P2))+(RR_B_C2*E32)+(RR_B_C3*E33)+(RR_B_C4*E26)+(RR_B_C5*E34)+(RR_B_C6*E34^2)))+MAX(0,E25*(RR_CD_C0+(RR_CD_C1*(0.95-RR_P2))+(RR_CD_C2*E32)+(RR_CD_C3*E33)+(RR_CD_C4*E26)+(RR_CD_C5*E34)+(RR_CD_C6*E34^2)))))))))) ->  | U35: A Soils | V35: 0.5808219303 | W35: -0.7785699457 | X35: -3.337384134e-07 | Y35: -0.001930558454 | Z35: 0.07025256312 | AA35: -2.491822979 | AB35: 2.635642738
D36: Runoff (ft3) | E36: =IF(E35="","", IF(E15="DCIA",(E35/12)*E19, IF(E15="SPA",0, (E35/12)*E32))) ->  | U36: B Soils | V36: -0.0777221989 | W36: -0.9254492737 | X36: -2.448889882e-07 | Y36: -0.001445744471 | Z36: 0.05019343335 | AA36: -0.01361618906 | AB36: 0.9243711362
D37: Runoff Reduction (ft3) | E37: =IF(E35="","", IF(E15="DCIA",0, IF(E15="SPA",IF(OR(RR_P2="",E22=""),"",(RR_P2/12)*E22), IF(E36="","",((RR_P2-0.1)/12)*E20-E36)))) ->  | U37: C/D Soils | V37: -0.01128880284 | W37: -0.8988526779 | X37: -2.68460349e-07 | Y37: -0.001570894685 | Z37: 0.0544978314 | AA37: 0.3553184685 | AB37: 0.4639025225
C39: CALCULATED WQCV RESULTS | U39: Where: | V39: P2 (in) = 2-hour WQCV Rainfall Depth
D40: Area ID | E40: =IF(E16="","",E16) ->  | V40: Area (ft2) = UIA:RPA area (sum of UIA and RPA)
D41: WQCV (ft3) | E41: =IF(OR(RR_P2="",RR_d6="",E15="",E18=""),"", IF(E15="SPA",0, IF(E15="DCIA",IF(E19="","",IF(OR(E18="EDB",E18="None"),1,IF(E18="CWP",0.9,0.8))*((0.91-1.19+0.78)/12)*E19)*(RR_d6/0.43), IF(OR(E32="",E34=""),"",IF(OR(E18="EDB",E18="None"),1,IF(E18="CWP",0.9,0.8))*((0.91-1.19+0.78)/12)*E20)*(RR_d6/0.43)))) ->  | F41: =IF(OR(RR_P2="",RR_d6="",F15="",F18=""),"", IF(F15="SPA",0, IF(F15="DCIA",IF(F19="","",IF(OR(F18="EDB",F18="None"),1,IF(F18="CWP",0.9,0.8))*((0.91-1.19+0.78)/12)*F19)*(RR_d6/0.43), IF(OR(F32="",F34=""),"",IF(OR(F18="EDB",F18="None"),1,IF(F18="CWP",0.9,0.8))*((0.91-1.19+0.78)/12)*F20)*(RR_d6/0.43)))) ->  | P41: =IF(OR(RR_P2="",RR_d6="",P15="",P18=""),"", IF(P15="SPA",0, IF(P15="DCIA",IF(P19="","",IF(OR(P18="EDB",P18="None"),1,IF(P18="CWP",0.9,0.8))*((0.91-1.19+0.78)/12)*P19)*(RR_d6/0.43), IF(OR(P32="",P34=""),"",IF(OR(P18="EDB",P18="None"),1,IF(P18="CWP",0.9,0.8))*((0.91-1.19+0.78)/12)*P20)*(RR_d6/0.43)))) ->  | V41: L/W Ratio = Ratio of total flow length to width for UIA:RPA area
D42: WQCV Reduction (ft3) | E42: =IF(OR(E18="",E36="",E41=""),"", IF(IF(OR(E18="EDB",E18="None"),E41-E36,IF(E18="CWP",(E41/0.9)-E36,(E41/0.8)-E36))<0,0, IF(OR(E18="EDB",E18="None"),E41-E36,IF(E18="CWP",(E41/0.9)-E36,(E41/0.8)-E36)))) ->  | F42: =IF(OR(F18="",F36="",F41=""),"", IF(IF(OR(F18="EDB",F18="None"),F41-F36,IF(F18="CWP",(F41/0.9)-F36,(F41/0.8)-F36))<0,0, IF(OR(F18="EDB",F18="None"),F41-F36,IF(F18="CWP",(F41/0.9)-F36,(F41/0.8)-F36)))) ->  | V42: Slope (ft/ft) = average overland flow slope of RPA
D43: WQCV Reduction (%) | E43: =IF(OR(E41="",E42=""),"",IF(E41=0,0,E42/E41)) ->  | F43: =IF(OR(F41="",F42=""),"",IF(F41=0,0,F42/F41)) ->  | V43: UIA / Area = UIA / (UIA + RPA)
D44: Untreated WQCV (ft3) | E44: =IF(OR(E41="",E42=""),"",E41-E42) ->  | F44: =IF(OR(F41="",F42=""),"",F41-F42) -> 
U45: Equation Variable Constraints:
C46: CALCULATED DESIGN POINT RESULTS (sums results from all columns with the same Downstream Design Point ID) | V46: 0.60 ≤ (UIA / Area) ≤ 1.0 (Type A Soils)
D47: Downstream Design Point ID | V47: 0.30 ≤ (UIA / Area) ≤ 1.0 (Type B Soils)
D48: DCIA (ft2) | E48: =IF(E$47="","",SUMIF(RR_DesignPoint_ID,E$47,RR_DCIA)) ->  | V48: 0.00 ≤ (UIA / Area) ≤ 1.0 (Type C/D Soils)
D49: UIA (ft2) | E49: =IF(E$47="","",SUMIF(RR_DesignPoint_ID,E$47,RR_UIA)) ->  | V49: 0.25 in ≤ P2 ≤ 0.95 in
D50: RPA (ft2) | E50: =IF(E$47="","",SUMIF(RR_DesignPoint_ID,E$47,RR_RPA)) ->  | V50: 1,000 ft2 ≤ Area ≤ 80,000 ft2
D51: SPA (ft2) | E51: =IF(E$47="","",SUMIF(RR_DesignPoint_ID,E$47,RR_SPA)) ->  | V51: 0.0625 ≤ L/W Ratio ≤ 16.0
D52: Total Area (ft2) | E52: =IF(E47="","",SUM(E48:E51)) ->  | F52: =IF(F47="","",SUM(F48:F51)) ->  | V52: 0.005 ft/ft ≤ Slope ≤ 0.333 ft/ft
D53: Total Impervious Area (ft2) | E53: =IF(E47="","",SUM(E48:E49)) ->  | F53: =IF(F47="","",SUM(F48:F49)) -> 
D54: WQCV (ft3) | E54: =IF(OR(RR_P2="",RR_d6="",E$47=""),"",SUMIF(RR_DesignPoint_ID,E$47,RR_Vol3_WQCV)) ->  | U54: Default Hydrologic Parameters used in SWMM Modeling
D55: WQCV Reduction (ft3) | E55: =IF(OR(E$47="",E54=""),"",SUMIF(RR_DesignPoint_ID,E$47,RR_Vol3_WQCVReduction)) ->  | U55: Hydrologic Soil Group | V55: Manning's n for Overland Flow | X55: Depression Storage (inches) | Z55: Horton Infiltration
D56: WQCV Reduction (%) | E56: =IF(OR(E47="",E54="",E55=""),"",IF(E54=0,0,E55/E54)) ->  | F56: =IF(OR(F47="",F54="",F55=""),"",IF(F54=0,0,F55/F54)) ->  | Z56: Initial Rate (in/hr) | AA56: Decay Coeff (hour-1) | AB56: Final Rate (in/hr)
D57: Untreated WQCV (ft3) | E57: =IF(OR(E$47="",E54=""),"",SUMIF(RR_DesignPoint_ID,E$47,RR_Vol3_UntreatedWQCV)) ->  | V57: Pervious | W57: Impervious | X57: Pervious | Y57: Impervious
U58: A | V58: 0.1 | W58: 0.01 | X58: 0.1 | Y58: 0.1 | Z58: 5 | AA58: 2.52 | AB58: 1
C59: CALCULATED SITE RESULTS (sums results from all columns in worksheet) | U59: B | Z59: 4.5 | AA59: 6.48 | AB59: 0.6
D60: Total Area (ft2) | E60: =IF(E47="","",SUM(E52:P52)) ->  | U60: C/D | Z60: 3 | AA60: 6.48 | AB60: 0.5
D61: Total Impervious Area (ft2) | E61: =IF(E47="","",SUM(E53:P53)) -> 
D62: WQCV (ft3) | E62: =IF(OR(RR_P2="",RR_d6="",E60=""),"",SUM(RR_Vol3_WQCV)) -> 
D63: WQCV Reduction (ft3) | E63: =IF(OR(E60="",E62=""),"",SUM(RR_Vol3_WQCVReduction)) -> 
D64: WQCV Reduction (%) | E64: =IF(OR(E60="",E62="",E63=""),"",IF(E62=0,0,E63/E62)) -> 
D65: Untreated WQCV (ft3) | E65: =IF(OR(E60="",E62=""),"",SUM(RR_Vol3_UntreatedWQCV)) -> 

Sheet GB
S1: Worksheet Protected
B2: Design Procedure Form: Grass Buffer (GB)
F3: =INTRO!B4 -> UD-BMP (Version 3.07, March 2018) | N3: Sheet 1 of 1
C4: Designer:
C5: Company:
C6: Date: | E6: =NOW() -> 2018-04-16T10:31:13.970
C7: Project:
C8: Location:
C11: 1. | D11: Design Discharge
D13: A) 2-Year Peak Flow Rate of the Area Draining to the Grass Buffer | K13: Q2 = | M13: cfs
C16: 2. | D16: Minimum Width of Grass Buffer | K16: WG = | L16: =IF(GB_Q2="","",GB_Q2/0.05) ->  | M16: ft
C19: 3. | D19: Length of Grass Buffer (14' or greater recommended) | K19: LG = | M19: =IF(GBL="","ft",IF(GBL>=14,"ft","ft (increased length will improve treatment)")) -> ft
C22: 4. | D22: Buffer Slope (in the direction of flow, not to exceed 0.1 ft / ft) | K22: SG = | M22: ft / ft | N22: =IF(GBS="","",IF(GBS<=0.1,"","SLOPE TOO HIGH (>0.1ft / ft)")) -> 
C25: 5. | D25: Flow Characteristics (sheet or concentrated)
D27: A) Does runoff flow into the grass buffer across the
D28: entire width of the buffer?
D30: B) Watershed Flow Length | K30: FL= | M30: ft
D32: C) Interface Slope (normal to flow) | K32: SI= | M32: ft / ft
D34: D) Type of Flow
D35: Sheet Flow: FL * SI < 1
D36: Concentrated Flow: FL * SI > 1
C39: 6. | D39: Flow Distribution for Concentrated Flows
C49: 7 | D49: Soil Preparation
D50: (Describe soil amendment)
C55: 8 | D55: Vegetation (Check the type used or describe "Other")
C63: 9. | D63: Irrigation
D64: (*Select None if existing buffer area has 80% vegetation
D65: AND will not be disturbed during construction.)
C68: 10. | D68: Outflow Collection (Check the type used or describe "Other")
D76: Notes:

Sheet GS
S1: Worksheet Protected
B2: Design Procedure Form: Grass Swale (GS)
F3: =INTRO!B4 -> UD-BMP (Version 3.07, March 2018) | N3: Sheet 1 of 1
C4: Designer:
C5: Company:
C6: Date: | E6: =NOW() -> 2018-04-16T10:31:13.970
C7: Project:
C8: Location:
C11: 1. | D11: Design Discharge for 2-Year Return Period | K11: Q2 = | M11: cfs
C14: 2. | D14: Hydraulic Residence Time
D16: A) : Length of Grass Swale | K16: LS = | M16: ft
D18: B) Calculated Residence Time (based on design velocity below) | K18: THR= | L18: =IF(OR(GSLS="",GS_V2=""),"",(GSLS/GS_V2)/60) ->  | M18: minutes
C21: 3. | D21: Longitudinal Slope (vertical distance per unit horizontal)
D23: A) Available Slope (based on site constraints) | K23: Savail = | M23: ft / ft
D25: B) Design Slope | K25: SD = | M25: ft / ft
C28: 4. | D28: Swale Geometry
D30: A) Channel Side Slopes (Z = 4 min., horiz. distance per unit vertical) | K30: Z = | M30: ft / ft | N30: =IF(GSZ="","",IF(GSZ>=4,"","TOO STEEP (< 4)")) -> 
D31: =IF(U21="","",U21) -> 
D32: B) Bottom Width of Swale (enter 0 for triangular section) | K32: WB = | M32: ft
C35: 5. | D35: Vegetation
D37: A) Type of Planting (seed vs. sod, affects vegetal retardance factor)
C40: 6. | D40: =IF(OR(GS_V2="",GS_V2>1),"Design Velocity (minimum of 1 ft /s, LS / 300)",IF(1<=GSLS/300,"Design Velocity (1 ft / s maximum)","Design Velocity ("&ROUND(GSLS/300,3)&" ft / s maximum for desirable 5-minute residence time)")) -> Design Velocity (minimum of 1 ft /s, LS / 300) | K40: V2 = | L40: =IF(OR(GS_Q2="",GS_A2=""),"",GS_Q2/GS_A2) ->  | M40: ft / s | N40: =IF(GS_V2="","",IF(GS_V2<=1,"","TOO HIGH ( > 1 fps)")) -> 
D42: =IF(U22="","",U22) -> 
C43: 7. | D43: Design Flow Depth (1 foot maximum) | K43: D2 = | M43: ft | N43: =IF(GS_D2="","",IF(GS_D2<=1,"","TOO DEEP (> 1)")) -> 
D45: A) Flow Area | K45: A2 = | L45: =IF(OR(GSZ="",GSB="",GS_D2=""),"",GS_D2*GSB+GSZ*GS_D2^2) ->  | M45: sq ft
D47: B) Top Width of Swale | K47: WT = | L47: =IF(OR(GSZ="",GSB="",GS_D2=""),"",GSB+2*GS_D2*GSZ) ->  | M47: ft
D49: C) Froude Number (0.50 maximum) | K49: F = | L49: =IF(OR(GS_V2="",GS_A2="",GSWT=""),"",GS_V2/(32.2*(GS_A2/GSWT))^0.5) ->  | N49: =IF(GSF="","",IF(GSF<=0.5,"","TOO HIGH (> 0.5)")) -> 
D50: =IF(U35="","",U35) -> 
D51: D) Hydraulic Radius | K51: RH = | L51: =IF(OR(GSZ="",GSB="",GS_D2="",GS_A2=""),"",GS_A2/(GSB+2*GS_D2*(1+GSZ^2)^0.5)) -> 
D53: E) Velocity-Hydraulic Radius Product for Vegetal Retardance | K53: VR = | L53: =IF(OR(GS_V2="",GSR=""),"",GS_V2*GSR) -> 
D55: F) Manning's n (based on SCS vegetal retardance curve D for sodded grass) | K55: n =
D57: G) Cumulative Height of Grade Control Structures Required | K57: HD = | L57: =IF(OR(GSLS="",GSSMAX="",GSS="",GS_D2=""),"",MAX(0,ROUND((GSSMAX-GSS)*GSLS,1))) ->  | M57: ft
N59: =IF(OR(GSS="",GSS>=0.02),"","AN UNDERDRAIN IS") -> 
C60: 8. | D60: Underdrain | N60: =IF(OR(GSS="",GSS>=0.02),"","REQUIRED IF THE") -> 
D61: (Is an underdrain necessary?) | N61: =IF(OR(GSS="",GSS>=0.02),"","DESIGN SLOPE < 2.0%") -> 
C64: 9. | D64: Soil Preparation
D65: (Describe soil amendment)
C69: 10. | D69: Irrigation
D72: Notes:

Sheet RG
S1: Worksheet Protected
B2: Design Procedure Form: Rain Garden (RG)
I3: =INTRO!B4 -> UD-BMP (Version 3.07, March 2018) | N3: Sheet 1 of 2
C4: Designer:
C5: Company:
C6: Date: | E6: =NOW() -> 2018-04-16T10:31:13.970
C7: Project:
C8: Location:
C11: 1. | D11: Basin Storage Volume
D13: A) Effective Imperviousness of Tributary Area, Ia | K13: Ia = | M13: %
D14: (100% if all paved and roofed areas upstream of rain garden)
D16: B) Tributary Area's Imperviousness Ratio (i = Ia/100) | K16: i = | L16: =IF(RGIA="","",RGIA/100) -> 
D18: C) Water Quality Capture Volume (WQCV) for a 12-hour Drain Time | K18: WQCV = | L18: =IF(RGIA="","",0.8*(0.91*(RGI^3)-1.19*(RGI^2)+0.78*RGI)) ->  | M18: watershed inches
D19: (WQCV= 0.8 * (0.91* i3 - 1.19 * i2 + 0.78 * i)
D21: D) Contributing Watershed Area (including rain garden area) | K21: Area = | M21: sq ft
D23: E) Water Quality Capture Volume (WQCV) Design Volume | K23: VWQCV = | L23: =IF(OR(RGIA="",RGA="",RG_D6<>"",RGVOLUI<>""),"",(RGWQCV/12)*RGA) ->  | M23: cu ft
D24: Vol = (WQCV / 12) * Area
D26: F) For Watersheds Outside of the Denver Region, Depth of | K26: d6 = | M26: in
D27: Average Runoff Producing Storm
D29: G) For Watersheds Outside of the Denver Region, | K29: VWQCV OTHER = | L29: =IF(OR(RGIA="",RGA="",RG_D6="",RGVOLUI<>""),"",RG_D6*(((RGWQCV/12)*RGA)/0.43)) ->  | M29: cu ft
D30: Water Quality Capture Volume (WQCV) Design Volume
D32: H) User Input of Water Quality Capture Volume (WQCV) Design Volume | K32: VWQCV USER = | M32: cu ft
D33: (Only if a different WQCV Design Volume is desired)
C36: 2. | D36: Basin Geometry
D38: A) WQCV Depth (12-inch maximum) | K38: DWQCV = | M38: in | N38: =IF(RGDWQ>12,"12-INCH MAXIMUM","") -> 
D40: B) Rain Garden Side Slopes (Z = 4 min., horiz. dist per unit vertical) | K40: Z = | M40: ft / ft | N40: =IF(OR(RGZ="",RGZ=0,RGZ>=4),"","Z < 4:1") -> 
D41: (Use "0" if rain garden has vertical walls)
D43: C) Mimimum Flat Surface Area | K43: AMin = | L43: =IF(OR(RGDWQ="",RGZ=""),"",IF(OR(RGVOL<>"",RGVOLOD<>"",RGVOLUI<>""),ROUND(0.02*RGA*RGI,0),"")) ->  | M43: sq ft
D45: D) Actual Flat Surface Area | K45: AActual = | M45: sq ft | N45: =IF(RGAACT="","",IF(RGAACT<RGAMIN,"ACTUAL FLAT AREA < MINIMUM FLAT AREA","")) -> 
D47: E) Area at Design Depth (Top Surface Area) | K47: ATop = | M47: sq ft | N47: =IF(RGATOP="","",IF(RGATOP<RGAACT,"TOP SURFACE AREA CANNOT BE < FLAT SURFACE AREA","")) -> 
D49: F) Rain Garden Total Volume | K49: VT= | L49: =IF(OR(RGDWQ="",RGAACT="",RGATOP=""),"",((RGAACT+RGATOP)/2)*(RGDWQ/12)) ->  | M49: cu ft | N49: =IF(RGVT="","", IF(RGVOL<>"",IF(RGVT>RGVOL,"","TOTAL VOLUME < DESIGN VOLUME"), IF(RGVOLOD<>"",IF(RGVT>RGVOLOD,"","TOTAL VOLUME < DESIGN VOLUME"), IF(RGVOLUI<>"",IF(RGVT>RGVOLUI,"","TOTAL VOLUME < DESIGN VOLUME"),"")))) -> 
D50: (VT= ((ATop + AActual) / 2) * Depth)
C53: 3. | D53: Growing Media
C60: 4. | D60: Underdrain System
D62: A) Are underdrains provided?
D64: B) Underdrain system orifice diameter for 12 hour drain time
E66: i) Distance From Lowest Elevation of the Storage | K66: y = | M66: ft
E67: Volume to the Center of the Orifice
E69: ii) Volume to Drain in 12 Hours | K69: Vol12 = | L69: =IF(OR(RG_Underdrain_Boolean="",RGHWQCV=""),"",IF(RG_Underdrain_Boolean=2,"N/A", IF(RGVOL<>"",RGVOL,IF(RGVOLOD<>"",RGVOLOD,IF(RGVOLUI<>"",RGVOLUI,""))))) ->  | M69: cu ft
E71: iii) Orifice Diameter, 3/8" Minimum | K71: DO = | L71: =IF(OR(RG_Underdrain_Boolean="",RGHWQCV="",RGHWQCV=0,,RGVOL12="",RGVOL12=0),"",IF(RG_Underdrain_Boolean=2,"N/A",ROUND(((RGVOL12/(1414*(RGHWQCV^0.41)))^0.5)*16,0)/16)) ->  | M71: in | N71: =IF(OR(RGDO="",RGDO="N/A",RGDO>=0.375),"","LESS THAN MINIMUM. USE DIAMETER OF 3/8""") -> 
B75: =B2 -> Design Procedure Form: Rain Garden (RG)
N76: Sheet 2 of 2
C77: Designer: | E77: =IF(E4="","",E4) -> 
C78: Company: | E78: =IF(E5="","",E5) -> 
C79: Date: | E79: =IF(E6="","",E6) -> 2018-04-16T10:31:13.970
C80: Project: | E80: =IF(E7="","",E7) -> 
C81: Location: | E81: =IF(E8="","",E8) -> 
C85: 5. | D85: Impermeable Geomembrane Liner and Geotextile Separator Fabric
D87: A) Is an impermeable liner provided due to proximity
D88: of structures or groundwater contamination?
C95: 6. | D95: Inlet / Outlet Control
D97: A) Inlet Control
C102: 7. | D102: Vegetation
C107: 8. | D107: Irrigation
D109: A) Will the rain garden be irrigated?
D111: Notes:

Sheet SF
S1: Worksheet Protected
B2: Design Procedure Form: Sand Filter (SF)
G3: =INTRO!B4 -> UD-BMP (Version 3.07, March 2018) | N3: Sheet 1 of 2
C4: Designer:
C5: Company:
C6: Date: | E6: =NOW() -> 2018-04-16T10:31:13.970
C7: Project:
C8: Location:
C11: 1. | D11: Basin Storage Volume
D13: A) Effective Imperviousness of Tributary Area, Ia | K13: Ia = | M13: %
D14: (100% if all paved and roofed areas upstream of sand filter)
D16: B) Tributary Area's Imperviousness Ratio (i = Ia/100) | K16: i = | L16: =IF(SFIA="","",SFIA/100) -> 
D18: C) Water Quality Capture Volume (WQCV) Based on 12-hour Drain Time | K18: WQCV = | L18: =IF(SFIA="","",0.8*(0.91*(SFI^3)-1.19*(SFI^2)+0.78*SFI)) ->  | M18: watershed inches
D19: WQCV= 0.8 * (0.91* i3 - 1.19 * i2 + 0.78 * i)
D21: D) Contributing Watershed Area (including sand filter area) | K21: Area = | M21: sq ft
D23: E) Water Quality Capture Volume (WQCV) Design Volume | K23: VWQCV = | L23: =IF(OR(SFIA="",SFA="",SF_D6<>"",SFVOLUI<>""),"",(SFWQCV/12)*SFA) ->  | M23: cu ft
D24: VWQCV = WQCV / 12 * Area
D26: F) For Watersheds Outside of the Denver Region, Depth of | K26: d6 = | M26: in
D27: Average Runoff Producing Storm
D29: G) For Watersheds Outside of the Denver Region, | K29: VWQCV OTHER = | L29: =IF(OR(SFIA="",SFA="",SF_D6="",SFVOLUI<>""),"",SF_D6*(((SFWQCV/12)*SFA)/0.43)) ->  | M29: cu ft
D30: Water Quality Capture Volume (WQCV) Design Volume
D32: H) User Input of Water Quality Capture Volume (WQCV) Design Volume | K32: VWQCV USER = | M32: cu ft
D33: (Only if a different WQCV Design Volume is desired)
C36: 2. | D36: Basin Geometry
D38: A) WQCV Depth | K38: DWQCV = | M38: ft
D40: B) Sand Filter Side Slopes (Horizontal distance per unit vertical, | K40: Z = | M40: ft / ft | N40: =IF(OR(SFZ="",SFZ=0,SFZ>=3),"","TOO STEEP (< 3)") -> 
D41: 4:1 or flatter preferred). Use "0" if sand filter has vertical walls. | L41: =IF(OR(SFZ="",SFZ=0,SFZ>=4),"",IF(SFZ>=3,"DIFFICULT TO MAINTAIN, INCREASE WHERE POSSIBLE","")) -> 
D43: C) Minimum Filter Area (Flat Surface Area) | K43: AMin = | L43: =IF(OR(SFDWQ="",SFZ=""),"",IF(OR(SFVOL<>"",SFVOLOD<>"",SFVOLUI<>""),ROUND(0.0125*SFA*SFI,0),"")) ->  | M43: sq ft
D45: D) Actual Filter Area | K45: AActual = | M45: sq ft | N45: =IF(SFAACT="","",IF(SFAACT<SFAMIN,"ACTUAL FLAT AREA < MINIMUM FLAT AREA","")) -> 
D47: E) Volume Provided | K47: VT = | M47: cu ft | N47: =IF(SFVT="","", IF(SFVOL<>"",IF(SFVT>SFVOL,"","TOTAL VOLUME < DESIGN VOLUME IN 1.E"), IF(SFVOLOD<>"",IF(SFVT>SFVOLOD,"","TOTAL VOLUME < DESIGN VOLUME IN 1.G"), IF(SFVOLUI<>"",IF(SFVT>SFVOLUI,"","TOTAL VOLUME < DESIGN VOLUME IN 1.H"),"")))) -> 
C50: 3. | D50: Filter Material
C57: 4. | D57: Underdrain System
D59: A) Are underdrains provided?
D61: B) Underdrain system orifice diameter for 12 hour drain time
E63: i) Distance From Lowest Elevation of the Storage | K63: y = | M63: ft
E64: Volume to the Center of the Orifice
E66: ii) Volume to Drain in 12 Hours | K66: Vol12 = | L66: =IF(OR(SF_Underdrain_Boolean="",SFHWQCV=""),"",IF(SF_Underdrain_Boolean=2,"N/A", IF(SFVOL<>"",SFVOL,IF(SFVOLOD<>"",SFVOLOD,IF(SFVOLUI<>"",SFVOLUI,""))))) ->  | M66: cu ft | V66: 0.125
V67: 0.1875
E68: iii) Orifice Diameter, 3/8" Minimum | K68: DO = | L68: =IF(OR(SF_Underdrain_Boolean="",SFHWQCV="",SFHWQCV=0,SFVOL12="",SFVOL12=0),"",IF(SF_Underdrain_Boolean=2,"N/A",ROUND(((SFVOL12/(1414*(SFHWQCV^0.41)))^0.5)*16,0)/16)) ->  | M68: in | N68: =IF(OR(SFDO="",SFDO="N/A",SFDO>=0.375),"","LESS THAN MINIMUM. USE 3/8""" &" DIAMETER") ->  | V68: 0.25
V69: 0.3125
V70: 0.375
V71: 0.4375
B72: =B2 -> Design Procedure Form: Sand Filter (SF) | V72: 0.5
N73: Sheet 2 of 2 | V73: 0.5625
C74: Designer: | E74: =IF(E4="","",E4) ->  | V74: 0.625
C75: Company: | E75: =IF(E5="","",E5) ->  | V75: 0.6875
C76: Date: | E76: =IF(E6="","",E6) -> 2018-04-16T10:31:13.970 | V76: 0.75
C77: Project: | E77: =IF(E7="","",E7) ->  | V77: 0.8125
C78: Location: | E78: =IF(E8="","",E8) ->  | V78: 0.875
V79: 0.9375
V80: 1
V81: 1.0625
C82: 5. | D82: Impermeable Geomembrane Liner and Geotextile Separator Fabric | V82: 1.125
V83: 1.1875
D84: A) Is an impermeable liner provided due to proximity | V84: 1.25
D85: of structures or groundwater contamination? | V85: 1.3125
V86: 1.375
V87: 1.4375
V88: 1.5
V89: 1.5625
V90: 1.625
V91: 1.6875
C92: 6. | D92: Inlet / Outlet Works | V92: 1.75
V93: 1.8125
D94: A) Describe the type of energy dissipation at inlet points and means of | V94: 1.875
D95: conveying flows in excess of the WQCV through the outlet | V95: 1.9375
V96: 2
V97: 2
D98: Notes:

Sheet EDB
S1: Worksheet Protected
B2: Design Procedure Form: Extended Detention Basin (EDB)
G3: =INTRO!B4 -> UD-BMP (Version 3.07, March 2018) | P3: Sheet 1 of 3
C4: Designer:
C5: Company:
C6: Date: | E6: =NOW() -> 2018-04-16T10:31:13.970
C7: Project:
C8: Location:
C11: 1. | D11: Basin Storage Volume
D13: A) Effective Imperviousness of Tributary Area, Ia | L13: Ia = | N13: %
D15: B) Tributary Area's Imperviousness Ratio (i = Ia / 100 ) | L15: i = | M15: =IF(EDBIA="","",EDBIA/100) -> 
D17: C) Contributing Watershed Area | L17: Area = | N17: ac
D19: D) For Watersheds Outside of the Denver Region, Depth of Average | L19: d6 = | N19: in
D20: Runoff Producing Storm
D22: E) Design Concept
D23: (Select EURV when also designing for flood control)
D27: F) Design Volume (WQCV) Based on 40-hour Drain Time | L27: VDESIGN= | M27: =IF(OR(EDBIA="",EDBA="",EDBD6<>"",EDBVWQCVUI<>""),"",((1*(0.91*(EDBI^3)-1.19*(EDBI^2)+0.78*EDBI))/12)*EDBA) ->  | N27: ac-ft
D28: (VDESIGN = (1.0 * (0.91 * i3 - 1.19 * i2 + 0.78 * i) / 12 * Area )
D30: G) For Watersheds Outside of the Denver Region, | L30: VDESIGN OTHER= | M30: =IF(OR(EDBIA="",EDBA="",EDBD6="",EDBVWQCVUI<>""),"",EDBD6*(((1*(0.91*(EDBI^3)-1.19*(EDBI^2)+0.78*EDBI))/12)*EDBA/0.43)) ->  | N30: ac-ft
D31: Water Quality Capture Volume (WQCV) Design Volume
D32: (VWQCV OTHER = (d6*(VDESIGN/0.43))
D34: H) User Input of Water Quality Capture Volume (WQCV) Design Volume | L34: VDESIGN USER= | N34: ac-ft
D35: (Only if a different WQCV Design Volume is desired)
D37: I) NRCS Hydrologic Soil Groups of Tributary Watershed
D38: i) Percentage of Watershed consisting of Type A Soils | L38: HSG A = | N38: %
D39: ii) Percentage of Watershed consisting of Type B Soils | L39: HSG B = | N39: %
D40: iii) Percentage of Watershed consisting of Type C/D Soils | L40: HSG C/D = | N40: %
D42: J) Excess Urban Runoff Volume (EURV) Design Volume
D43: For HSG A: EURVA = 1.68 * i1.28 | L43: EURVDESIGN = | M43: =IF(OR(EDB_WQCV_EURV_Button="",EDB_WQCV_EURV_Button=1,SUM(EDB_HSG_A,EDB_HSG_B,EDB_HSG_CD)<>100,EDBEURV_User<>""),"", EDBA*((EDB_HSG_A/100)*(1.68*EDBI^1.28)+(EDB_HSG_B/100)*(1.36*EDBI^1.08)+(EDB_HSG_CD/100)*(1.2*EDBI^1.08))/12) ->  | N43: ac-f t
D44: For HSG B: EURVB = 1.36 * i1.08
D45: For HSG C/D: EURVC/D = 1.20 * i1.08
D47: K) User Input of Excess Urban Runoff Volume (EURV) Design Volume | L47: EURVDESIGN USER= | N47: ac-f t
D48: (Only if a different EURV Design Volume is desired)
C51: 2. | D51: Basin Shape: Length to Width Ratio | L51: L : W = | N51: : 1 | O51: =IF(OR(EDBLW="",EDBLW>=2),"","INCREASE FLOW PATH FOR 2:1 RATIO") -> 
D52: (A basin length to width ratio of at least 2:1 will improve TSS reduction.)
C55: 3. | D55: Basin Side Slopes
D57: A) Basin Maximum Side Slopes | L57: Z = | N57: ft / ft | O57: =IF(OR(EDBZ="",EDBZ=0,EDBZ>=3),"","TOO STEEP (< 3)") -> 
D58: (Horizontal distance per unit vertical, 4:1 or flatter preferred) | M58: =IF(OR(EDBZ="",EDBZ=0,EDBZ>=4),"",IF(EDBZ>=3,"DIFFICULT TO MAINTAIN, INCREASE WHERE POSSIBLE","")) -> 
C61: 4. | D61: Inlet
D63: A) Describe means of providing energy dissipation at concentrated
D64: inflow locations:
M66: =IF(EDB_WQCV_EURV_Button="","",IF(SUM(EDBVWQCV,EDBVWQCVOD,EDBVWQCVUI)=0,"",SUM(EDBVWQCV,EDBVWQCVOD,EDBVWQCVUI))) -> 
C67: 5. | D67: Forebay
D69: A) Minimum Forebay Volume | L69: VFMIN = | M69: =IF(OR(EDBWQCV="",EDBVFMIN_PCT=""),"",ROUND(EDBVFMIN_PCT*EDBWQCV,3)) ->  | N69: ac-ft | O69: =IF(EDBVFMIN_PCT="","",IF(EDBVFMIN_PCT=0,"A FOREBAY MAY NOT BE","")) -> 
D70: (VFMIN = | E70: =IF(OR(EDBIA="",EDBA="",EDB_WQCV_EURV_Button=""),"", IF(EDBI*EDBA<=1,0, IF(EDBI*EDBA<=2,0.01, IF(EDBI*EDBA<=5,0.02,0.03)))) ->  | F70: of the WQCV) | O70: =IF(EDBVFMINFLAG="","","NECESSARY FOR THIS SIZE SITE") -> 
D72: B) Actual Forebay Volume | L72: VF = | N72: ac-ft | O72: =IF(OR(EDBVFMIN="",EDBVF=""),"",IF(ROUND(EDBVF,3)<ROUND(EDBVFMIN,3),"VF < MINIMUM VF","")) -> 
D74: C) Forebay Depth
D75: (DF = | E75: =IF(OR(EDBIA="",EDBA="",EDB_WQCV_EURV_Button=""),"", IF(EDBI*EDBA<=1,12, IF(EDBI*EDBA<=2,12, IF(EDBI*EDBA<=20,18,30)))) ->  | F75: inch maximum) | L75: DF = | N75: in | O75: =IF(OR(EDBDF_MAX="",EDBDF=""),"",IF(EDBDF>EDBDF_MAX,"DF > DF MAXIMUM","")) -> 
D77: D) Forebay Discharge
D79: i) Undetained 100-year Peak Discharge | L79: Q100 = | N79: cfs
D81: ii) Forebay Discharge Design Flow | L81: QF = | M81: =IF(EDBQ100="","",EDBQ100*0.02) ->  | N81: cfs
D82: (QF = 0.02 * Q100)
D84: E) Forebay Discharge Design
O85: =IF(OR(EDBIA="",EDBA=""),"",IF(EDBI*EDBA>20,"","Flow too small for berm w/ pipe")) -> 
O88: =IF(EDBDP="","",IF(EDBDP<8,"MINIMUM 8-INCH","ROUND UP TO NEAREST PIPE SIZE")) -> 
O89: =IF(EDBDP="","",IF(EDBDP>=EDBDF-1,"SINGLE PIPE DOESN'T HAVE ADEQUATE CAPACITY","")) -> 
D90: F) Discharge Pipe Size (minimum 8-inches) | L90: Calculated DP = | N90: in | O90: =IF(EDBDPFLAG2="","","BASED ON FOREBAY DEPTH. MULTIPLE PIPES") -> 
O91: =IF(EDBDPFLAG2="","","MAY BE USED BUT SIZING IS NOT PROVIDED.") -> 
D92: G) Rectangular Notch Width | L92: Calculated WN = | N92: in | O92: =IF(EDBDPFLAG2="","","CONSIDER USING A BERM WITH NOTCH") -> 
O93: =IF(EDBDPFLAG2="","","OR INCREASE THE FOREBAY DEPTH.") -> 
B96: =B2 -> Design Procedure Form: Extended Detention Basin (EDB)
P97: Sheet 2 of 3
C98: Designer: | E98: =IF(E4="","",E4) -> 
C99: Company: | E99: =IF(E5="","",E5) -> 
C100: Date: | E100: =IF(E6="","",E6) -> 2018-04-16T10:31:13.970
C101: Project: | E101: =IF(E7="","",E7) -> 
C102: Location: | E102: =IF(E8="","",E8) -> 
C105: 6. | D105: Trickle Channel
D107: A) Type of Trickle Channel
D110: F) Slope of Trickle Channel | L110: S = | N110: ft / ft
C113: 7. | D113: Micropool and Outlet Structure
D115: A) Depth of Micropool (2.5-feet minimum) | L115: DM = | N115: ft | O115: =IF(EDBDM="","",IF(EDBDM<2.5,"MIN. DEPTH OF 2.5 FEET","")) -> 
D117: B) Surface Area of Micropool (10 ft2 minimum) | L117: AM = | N117: sq ft | O117: =IF(EDBAM="","",IF(EDBAM<10,"MIN. SURFACE AREA OF 10 SQ.FT.","")) -> 
D119: C) Outlet Type
D128: D) Smallest Dimension of Orifice Opening Based on Hydrograph Routing
D129: (Use UD-Detention) | L129: Dorifice = | N129: inches
D131: E) Total Outlet Area | L131: Aot = | N131: square inches
C134: 8. | D134: Initial Surcharge Volume
O135: =IF(OR(EDBDIS="",EDBDIS>=4),"","ISV DEPTH LESS THAN MINIMUM. REVIEW PLANS") -> 
D136: A) Depth of Initial Surcharge Volume | L136: DIS = | N136: in | O136: =IF(EDBISVFLAG="","","TO DETERMINE LIMITS OF PONDING AT A DEPTH") -> 
D137: (Minimum recommended depth is 4 inches) | O137: =IF(EDBISVFLAG="","","OF 4 INCHES. PONDING AT THIS DEPTH SHOULD") -> 
O138: =IF(EDBISVFLAG="","","NOT INCLUDE VEGETATED AREAS.") -> 
D139: B) Minimum Initial Surcharge Volume | L139: VIS = | M139: =IF(EDBWQCV="","",IF(EDBI*EDBA<5,"",0.003*EDBWQCV*43560)) ->  | N139: cu ft
D140: (Minimum volume of 0.3% of the WQCV)
D142: C) Initial Surcharge Provided Above Micropool | L142: Vs= | M142: =IF(OR(EDBAM="",EDBDIS=""),"",EDBAM*(EDBDIS/12)) ->  | N142: cu ft
C145: 9. | D145: Trash Rack
D147: A) Water Quality Screen Open Area: At = Aot * 38.5*(e-0.095D) | L147: At = | M147: =IF(OR(EDB_CircularOrificeDiameter="",EDB_User_TotalOutletArea=""),"",MAX(38.5*EXP(-0.095*EDB_CircularOrificeDiameter)*EDB_User_TotalOutletArea,0)) ->  | N147: square inches
D149: B) Type of Screen (If specifying an alternative to the materials recommended in the USDCM, indicate "other" and enter the ratio of the total open are to the total screen are for the material specified.) | L149: =IF(OR(EDB_CircularOrificeDiameter="",EDB_OtherYN=""),"", IF(EDB_OtherYN="Y","Other (Please describe below)", IF(EDB_CircularOrificeDiameter<1.25,"S.S. Well Screen with 60% Open Area", IF(EDB_CircularOrificeDiameter<4,"Aluminum Amico-Klemp SR Series with Cross Rods 2"" O.C.", "Aluminum Amico-Klemp SR Series with Cross Rods 4"" O.C.")))) -> 
D153: Y | F153: Other (Y/N): | G153: N
D154: N
D156: C) Ratio of Total Open Area to Total Area (only for type 'Other') | J156: =IF(OR(EDB_CircularOrificeDiameter="",EDB_OtherYN=""),"", IF(EDB_OtherYN="Y","", IF(EDB_CircularOrificeDiameter<1.25,0.6, IF(EDB_CircularOrificeDiameter<4,0.71,0.77)))) ->  | L156: User Ratio =
D158: D) Total Water Quality Screen Area (based on screen type) | L158: Atotal = | M158: =IF(OR(EDBAT="",EDB_OtherYN=""),"", IF(EDB_OtherYN="N",EDBAT/EDB_HiddenRatio, IF(EDB_ScreenRatio="","",EDBAT/EDB_ScreenRatio))) ->  | N158: sq. in. | O158: =IF(AND(EDB_OtherYN="Y",EDB_ScreenRatio<>""),"Based on type 'Other' screen ratio","") -> 
D160: E) Depth of Design Volume (EURV or WQCV) | L160: H= | N160: feet
D161: (Based on design concept chosen under 1E)
D163: F) Height of Water Quality Screen (HTR) | L163: HTR= | M163: =IF(OR(EDBDM="",EDBH=""),"",(EDBH*12)+(EDBDM*12)-2) ->  | N163: inches
D165: G) Width of Water Quality Screen Opening (Wopening) | L165: Wopening = | M165: =IF(OR(EDB_TotalScreenArea="",EDBHTR=""),"",MAX(EDB_TotalScreenArea/EDBHTR,12)) ->  | N165: inches | O165: =IF(OR(EDB_TotalScreenArea="",EDBHTR=""),"",IF(EDB_TotalScreenArea/EDBHTR>=12,"","VALUE LESS THAN RECOMMENDED MIN. WIDTH.")) -> 
D166: (Minimum of 12 inches is recommended) | O166: =IF(EDBWO_Flag1="","","WIDTH HAS BEEN SET TO 12 INCHES.") -> 
B171: =B2 -> Design Procedure Form: Extended Detention Basin (EDB)
P172: Sheet 3 of 3
C173: Designer: | E173: =IF(E4="","",E4) -> 
C174: Company: | E174: =IF(E5="","",E5) -> 
C175: Date: | E175: =IF(E6="","",E6) -> 2018-04-16T10:31:13.970
C176: Project: | E176: =IF(E7="","",E7) -> 
C177: Location: | E177: =IF(E8="","",E8) -> 
C180: 10. | D180: Overflow Embankment
D182: A) Describe embankment protection for 100-year and greater overtopping:
D186: B) Slope of Overflow Embankment | L186: Ze = | N186: ft / ft | O186: =IF(OR(EDBZE="",EDBZE>=3),"","TOO STEEP (< 3)") -> 
D187: (Horizontal distance per unit vertical, 4:1 or flatter preferred) | M187: =IF(OR(EDBZE="",EDBZE>=4),"",IF(EDBZE>=3,"DIFFICULT TO MAINTAIN, INCREASE WHERE POSSIBLE","")) -> 
C191: 11. | D191: Vegetation
C196: 12. | D196: Access
D198: A) Describe Sediment Removal Procedures
D205: Notes:

Sheet RP
S1: Worksheet Protected
B2: Design Procedure Form: Retention Pond (RP)
H3: =INTRO!B4 -> UD-BMP (Version 3.07, March 2018) | P3: Sheet 1 of 2
C4: Designer:
C5: Company:
C6: Date: | E6: =NOW() -> 2018-04-16T10:31:13.970
C7: Project:
C8: Location:
C11: 1. | D11: Baseflow
D13: A) Is the permanent pool established by groundwater?
C17: 2. | D17: Surcharge Volume
D19: A) Effective Imperviousness of Tributary Area, Ia | L19: Ia = | N19: %
D21: B) Tributary Area's Imperviousness Ratio (i = Ia / 100 ) | L21: i = | M21: =IF(RPIA="","",RPIA/100) -> 
D23: C) Contributing Watershed Area | L23: Area = | N23: ac
D25: D) For Watersheds Outside of the Denver Region, Depth of Average | L25: d6 = | N25: in
D26: Runoff Producing Storm
D28: E) Design Concept
D29: (Select EURV when also designing for flood control)
D33: F) Water Quality Capture Volume (WQCV) | L33: VWQCV= | M33: =IF(OR(RPIA="",RPA="",RP_D6<>"",RPVWQCVUI<>""),"",((0.8*(0.91*(RPI^3)-1.19*(RPI^2)+0.78*RPI))/12)*RPA) ->  | N33: ac-ft
D34: Based on 12-hour Drain Time
D35: (VWQCV = (0.8 * (0.91 * i3 - 1.19 * i2 + 0.78 * i) / 12 * Area)
D37: G) For Watersheds Outside of the Denver Region, | L37: VWQCV OTHER= | M37: =IF(OR(RPIA="",RPA="",RP_D6="",RPVWQCVUI<>""),"",RP_D6*(((0.8*(0.91*(RPI^3)-1.19*(RPI^2)+0.78*RPI))/12)*RPA/0.43)) ->  | N37: ac-ft
D38: Water Quality Capture Volume (WQCV)
D39: (VWQCV OTHER = (d6*(VWQCV/0.43))
D41: H) User Input of Water Quality Capture Volume (WQCV) | L41: VWQCV USER= | N41: ac-ft
D42: (Only if a different WQCV Design Volume is desired)
D44: I) NRCS Hydrologic Soil Groups of Tributary Watershed
D45: i) Percentage of Watershed consisting of Type A Soils | L45: HSG A = | N45: %
D46: ii) Percentage of Watershed consisting of Type B Soils | L46: HSG B = | N46: %
D47: iii) Percentage of Watershed consisting of Type C/D Soils | L47: HSG C/D = | N47: %
D49: J) Excess Urban Runoff Volume (EURV) Design Volume
D50: For HSG A: EURVA = 1.68 * i1.28 | L50: EURV = | M50: =IF(OR(RP_WQCV_EURV_Button="",RP_WQCV_EURV_Button=1,SUM(RP_HSG_A,RP_HSG_B,RP_HSG_CD)<>100,RPEURV_User<>""),"", RPA*((RP_HSG_A/100)*(1.68*RPI^1.28)+(RP_HSG_B/100)*(1.36*RPI^1.08)+(RP_HSG_CD/100)*(1.2*RPI^1.08))/12) ->  | N50: ac-f t
D51: For HSG B: EURVB = 1.36 * i1.08
D52: For HSG C/D: EURVC/D = 1.20 * i1.08
D54: K) User Input of Excess Urban Runoff Volume (EURV) Design Volume | L54: EURVDESIGN USER= | N54: ac-f t
D55: (Only if a different EURV Design Volume is desired)
M56: =IF(RP_WQCV_EURV_Button="","",IF(SUM(RPVWQCV,RPVWQCVOD,RPVWQCVUI)=0,"",SUM(RPVWQCV,RPVWQCVOD,RPVWQCVUI))) -> 
C58: 3. | D58: Basin Shape: Length to Width Ratio | L58: L : W = | N58: : 1 | O58: =IF(OR(RPLW="",AND(RPLW>=2,RPLW<=3)),"","RECOMMENDED RATIO BETWEEN 2:1 AND 3:1") -> 
D59: (It is recommended to have a basin length-to-width ratio between 2:1 and 3:1)
C62: 4. | D62: Permanent Pool
D63: A) Minimum Permanent Pool Volume | L63: VPOOL = | M63: =IF(RPWQCV="","",ROUND(0.03*RPWQCV,3)) ->  | N63: ac-ft
D65: B) Depth of the Safety Wetland Bench | L65: DLZ = | N65: in | O65: =IF(OR(RPDLZ="",AND(RPDLZ>=6,RPDLZ<=12)),"","RECOMMENDED TO BE BETWEEN 6 AND 12 INCHES") -> 
D66: (Depth between 6 to 12 inches recommended)
D68: C) Depth of the Open Water Zone | L68: DOWZ = | N68: ft | O68: =IF(OR(RPDOWZ="",RPDOWZ<=12),"","D > 12 FEET") -> 
D69: (Maximum depth of 12 feet)
C72: 5. | D72: Side Slopes
D74: A) Maximum Side Slopes Above the Safety Wetland Bench | L74: ZPP = | N74: ft / ft | O74: =IF(OR(RPZPP="",RPZPP>=4),"","TOO STEEP (< 4:1)") -> 
D75: (Horiz. dist. per unit vertical, should be no steeper than 4:1)
D77: B) Maximum Side Slopes Below the Safety Wetland Bench | L77: ZOWZ = | N77: ft / ft | O77: =IF(OR(RPZOWZ="",RPZOWZ>=3),"","TOO STEEP (< 3:1)") -> 
D78: (Horiz. dist. per unit vertical, should be no steeper than 3:1)
C81: 6. | D81: Inlet
D83: A) Describe means of providing energy dissipation at concentrated
D84: inflow locations:
C87: 7. | D87: Forebay
D89: A) Minimum Forebay Volume | L89: VFMIN = | M89: =IF(RPWQCV="","",ROUND(0.03*RPWQCV,3)) ->  | N89: ac-ft
D90: (VFMIN = 3% of the WQCV)
D92: B) Actual Forebay Volume | L92: VF = | N92: ac-ft | O92: =IF(OR(RPVFMIN="",RPVF=""),"",IF(ROUND(RPVF,3)<ROUND(RPVFMIN,3),"VF < MINIMUM VF","")) -> 
B96: =B2 -> Design Procedure Form: Retention Pond (RP)
E97: =INTRO!B4 -> UD-BMP (Version 3.07, March 2018) | P97: Sheet 2 of 2
C98: Designer: | E98: =IF(E4="","",E4) -> 
C99: Company: | E99: =IF(E5="","",E5) -> 
C100: Date: | E100: =NOW() -> 2018-04-16T10:31:13.970
C101: Project: | E101: =IF(E7="","",E7) -> 
C102: Location: | E102: =IF(E8="","",E8) -> 
C105: 8. | D105: Outlet
D107: A) Outlet Type
D113: C) Smallest Dimension of Orifice Opening Based on Hydrograph Routing | L113: Dorifice = | N113: inches
D114: (Use UD-Detention)
D116: D) Total Outlet Area (Aot) | L116: Aot = | N116: square inches
C119: 9. | D119: Trash Rack
D121: A) Water Quality Screen Open Area: At = Aot * 38.5*(e-0.095D) | L121: At = | M121: =IF(OR(RP_CircularOrificeDiameter="",RP_AOT=""),"",MAX(38.5*EXP(-0.095*RP_CircularOrificeDiameter)*RP_AOT,0)) ->  | N121: square inches
D123: B) Type of Screen (If specifying an alternative to the materials recommended in the USDCM, indicate "other" and enter the ratio of the total open are to the total screen are for the material specified.) | L123: =IF(OR(RP_CircularOrificeDiameter="",RP_OtherYN=""),"", IF(RP_OtherYN="Y","Other (Please describe below)", IF(RP_CircularOrificeDiameter<1.25,"S.S. Well Screen with 60% Open Area", IF(RP_CircularOrificeDiameter<4,"Aluminum Amico-Klemp SR Series with Cross Rods 2"" O.C.", "Aluminum Amico-Klemp SR Series with Cross Rods 4"" O.C.")))) -> 
D127: Y | F127: Other (Y/N): | G127: N
D128: N
D129: C) Ratio of Total Open Area to Total Area (only for type 'Other') | J129: =IF(OR(RP_CircularOrificeDiameter="",RP_OtherYN=""),"", IF(RP_OtherYN="Y","", IF(RP_CircularOrificeDiameter<1.25,0.6, IF(RP_CircularOrificeDiameter<4,0.71,0.77)))) ->  | L129: User Ratio =
D131: D) Total Water Quality Screen Area (based on screen type) | L131: Atotal = | M131: =IF(OR(RPAT="",RP_OtherYN=""),"", IF(RP_OtherYN="N",RPAT/RP_HiddenRatio, IF(RP_ScreenRatio="","",RPAT/RP_ScreenRatio))) ->  | N131: sq. in. | O131: =IF(AND(RP_OtherYN="Y",RP_ScreenRatio<>""),"Based on type 'Other' screen ratio","") -> 
D133: E) Inundated Depth of Water Quality Screen below Permanent Pool | L133: Dinundated = | N133: ft
D135: F) Depth of Design Volume (EURV or WQCV) | L135: H= | N135: ft
D136: (Based on design concept chosen under 1E)
D138: G) Height of Water Quality Screen (HTR) | L138: HTR= | M138: =IF(OR(RP_Inundated="",RPH=""),"",RPH*12+RP_Inundated*12) ->  | N138: inches
D140: H) Width of Water Quality Screen Opening (Wopening) | L140: Wopening = | M140: =IF(OR(RP_TotalScreenArea="",RPHTR=""),"",MAX(RP_TotalScreenArea/RPHTR,12)) ->  | N140: inches | O140: =IF(OR(RP_TotalScreenArea="",RPHTR=""),"",IF(RP_TotalScreenArea/RPHTR>=12,"","VALUE LESS THAN RECOMMENDED MIN. WIDTH.")) -> 
D141: (Minimum of 12 inches is recommended) | O141: =IF(RPWO_Flag1="","","WIDTH HAS BEEN SET TO 12 INCHES.") -> 
C144: 10. | D144: Overflow Embankment
D146: A) Describe embankment protection for 100-year and greater overtopping:
D149: B) Maximum Embankment Side Slopes
D150: (Horiz. dist. per unit vertical, should be no steeper than 4:1) | L150: Ze = | N150: ft / ft | O150: =IF(OR(RPZE="",RPZE>=4),"","TOO STEEP (< 4)") -> 
C153: 11. | D153: Maintenance Considerations
D155: A) Describe Means of Draining the Pond
C160: 12. | D160: Vegetation
C165: 13. | D165: Access
D167: A) Describe Sediment Removal Procedures
D174: Notes:

Sheet CWP
S1: Worksheet Protected
B2: Design Procedure Form: Constructed Wetland Pond (CWP)
G3: =INTRO!B4 -> UD-BMP (Version 3.07, March 2018) | P3: Sheet 1 of 2
C4: Designer:
C5: Company:
C6: Date: | E6: =NOW() -> 2018-04-16T10:31:13.970
C7: Project:
C8: Location:
C11: 1. | D11: Baseflow
D13: A) Is the permanent pool established by groundwater?
C16: 2. | D16: Surcharge Volume
D18: A) Effective Imperviousness of Tributary Area, Ia | L18: Ia = | N18: %
D20: B) Tributary Area's Imperviousness Ratio (i = Ia / 100 ) | L20: i = | M20: =IF(CWPIA="","",CWPIA/100) -> 
D22: C) Contributing Watershed Area | L22: Area = | N22: ac
D24: D) For Watersheds Outside of the Denver Region, Depth of Average | L24: d6 = | N24: in
D25: Runoff Producing Storm
D27: E) Design Concept
D28: (Select EURV when also designing for flood control)
D31: F) Water Quality Capture Volume (WQCV) Design Volume | L31: VWQCV= | M31: =IF(OR(CWPIA="",CWPA="",CWPD6<>"",CWPVWQCVUI<>""),"",((0.9*(0.91*(CWPI^3)-1.19*(CWPI^2)+0.78*CWPI))/12)*CWPA) ->  | N31: ac-ft
D32: Based on 24-hour Drain Time
D33: (VWQCV = (0.9 * (0.91 * i3 - 1.19 * i2 + 0.78 * i) / 12 * Area)
D35: G) For Watersheds Outside of the Denver Region, | L35: VWQCV OTHER= | M35: =IF(OR(CWPIA="",CWPA="",CWPD6="",CWPVWQCVUI<>""),"",CWPD6*(((0.9*(0.91*(CWPI^3)-1.19*(CWPI^2)+0.78*CWPI))/12)*CWPA/0.43)) ->  | N35: ac-ft
D36: Water Quality Capture Volume (WQCV) Design Volume
D37: (VWQCV OTHER = (d6*(VWQCV/0.43))
D39: H) User Input of Water Quality Capture Volume (WQCV) Design Volume | L39: VWQCV USER= | N39: ac-ft
D40: (Only if a different WQCV Design Volume is desired)
D42: I) NRCS Hydrologic Soil Groups of Tributary Watershed
D43: i) Percentage of Watershed consisting of Type A Soils | L43: HSG A = | N43: %
D44: ii) Percentage of Watershed consisting of Type B Soils | L44: HSG B = | N44: %
D45: iii) Percentage of Watershed consisting of Type C/D Soils | L45: HSG C/D = | N45: %
D47: J) Excess Urban Runoff Volume (EURV) Design Volume
D48: For HSG A: EURVA = 1.68 * i1.28 | L48: EURV = | M48: =IF(OR(CWP_WQCV_EURV_Button="",CWP_WQCV_EURV_Button=1,SUM(CWP_HSG_A,CWP_HSG_B,CWP_HSG_CD)<>100,CWPEURV_User<>""),"", CWPA*((CWP_HSG_A/100)*(1.68*CWPI^1.28)+(CWP_HSG_B/100)*(1.36*CWPI^1.08)+(CWP_HSG_CD/100)*(1.2*CWPI^1.08))/12) ->  | N48: ac-f t
D49: For HSG B: EURVB = 1.36 * i1.08
D50: For HSG C/D: EURVC/D = 1.20 * i1.08
D52: K) User Input of Excess Urban Runoff Volume (EURV) Design Volume | L52: EURVDESIGN USER= | N52: ac-f t
D53: (Only if a different EURV Design Volume is desired)
M54: =IF(CWP_WQCV_EURV_Button="","",IF(SUM(CWPVWQCV,CWPVWQCVOD,CWPVWQCVUI)=0,"",SUM(CWPVWQCV,CWPVWQCVOD,CWPVWQCVUI))) -> 
C56: 3. | D56: Depth of WQCV Surcharge | L56: DWQCV = | N56: ft | O56: =IF(OR(CWPDWQCV="",CWPDWQCV<=2),"","DEPTH > 2 FEET") -> 
D57: (Should not exceed 2 feet, required even if EURV is chosen)
C60: 4. | D60: Basin Shape | L60: L : W = | N60: : 1 | O60: =IF(OR(CWPLW="",AND(CWPLW>=2,CWPLW<=4)),"","RECOMMENDED RATIO BETWEEN 2:1 AND 4:1") -> 
D61: (It is recommended to have a basin length to width ratio between 2:1 and 4:1)
C64: 5. | D64: Permanent Pool
D66: A) Minimum Permanent Pool Volume (VPOOL = 75% of the WQCV) | L66: VPOOL = | M66: =IF(CWPWQCV="","",0.75*CWPWQCV) ->  | N66: ac-ft
C69: 6. | D69: Side Slopes
D71: A) Maximum Side Slope Above the Safety Wetland Bench | L71: Z = | N71: ft / ft | O71: =IF(OR(CWPZ="",CWPZ>=4),"","TOO STEEP (< 4:1)") -> 
D72: (Horiz. dist. per unit vertical, should be no steeper than 4:1)
C75: 7. | D75: Inlet
D76: A) Describe means of providing energy dissipation at concentrated
D77: inflow locations:
C80: 8. | D80: Forebay
D82: A) Minimum Forebay Volume | L82: VFMIN = | M82: =IF(CWPWQCV="","",ROUND(0.03*CWPWQCV,3)) ->  | N82: ac-ft
D83: (VFMIN = 3% of the WQCV)
D85: B) Actual Forebay Volume | L85: VF = | N85: ac-ft | O85: =IF(OR(CWPVFMIN="",CWPVF=""),"",IF(ROUND(CWPVF,3)<ROUND(CWPVFMIN,3),"VF < MINIMUM VF","")) -> 
B89: =B2 -> Design Procedure Form: Constructed Wetland Pond (CWP)
P90: Sheet 2 of 2
C91: Designer: | E91: =IF(E4="","",E4) -> 
C92: Company: | E92: =IF(E5="","",E5) -> 
C93: Date: | E93: =IF(E6="","",E6) -> 2018-04-16T10:31:13.970
C94: Project: | E94: =IF(E7="","",E7) -> 
C95: Location: | E95: =IF(E8="","",E8) -> 
C98: 9. | D98: Outlet
D100: A) Outlet Type
D106: B) Smallest Dimension of Orifice Opening Based on Hydrograph Routing | L106: Dorifice = | N106: inches
D107: (Use UD-Detention)
D109: C) Total Outlet Area (Aot) | L109: Aot = | N109: square inches
C112: 9. | D112: Trash Rack
D114: A) Water Quality Screen Open Area: At = Aot * 38.5*(e-0.095D) | L114: At = | M114: =IF(OR(CWP_CircularOrificeDiameter="",CWP_AOT=""),"",MAX(38.5*EXP(-0.095*CWP_CircularOrificeDiameter)*CWP_AOT,0)) ->  | N114: square inches
D116: B) Type of Screen (If specifying an alternative to the materials recommended in the USDCM, indicate "other" and enter the ratio of the total open are to the total screen are for the material specified.) | L116: =IF(OR(CWP_CircularOrificeDiameter="",CWP_OtherYN=""),"", IF(CWP_OtherYN="Y","Other (Please describe below)", IF(CWP_CircularOrificeDiameter<1.25,"S.S. Well Screen with 60% Open Area", IF(CWP_CircularOrificeDiameter<4,"Aluminum Amico-Klemp SR Series with Cross Rods 2"" O.C.", "Aluminum Amico-Klemp SR Series with Cross Rods 4"" O.C.")))) -> 
D120: Y | F120: Other (Y/N): | G120: N
D121: N
D122: C) Ratio of Total Open Area to Total Area (only for type 'Other') | J122: =IF(OR(CWP_CircularOrificeDiameter="",CWP_OtherYN=""),"", IF(CWP_OtherYN="Y","", IF(CWP_CircularOrificeDiameter<1.25,0.6, IF(CWP_CircularOrificeDiameter<4,0.71,0.77)))) ->  | L122: User Ratio =
D124: D) Total Water Quality Screen Area (based on screen type) | L124: Atotal = | M124: =IF(OR(CWPAT="",CWP_OtherYN=""),"", IF(CWP_OtherYN="N",CWPAT/CWP_HiddenRatio, IF(CWP_ScreenRatio="","",CWPAT/CWP_ScreenRatio))) ->  | N124: sq. in. | O124: =IF(AND(CWP_OtherYN="Y",CWP_ScreenRatio<>""),"Based on type 'Other' screen ratio","") -> 
D126: E) Inundated Depth of Water Quality Screen below Permanent Pool | L126: Dinundated = | N126: ft
D128: F) Depth of Design Volume (EURV or WQCV) | L128: H= | N128: ft
D129: (Based on design concept chosen under 1E)
D131: G) Height of Water Quality Screen (HTR) | L131: HTR= | M131: =IF(OR(CWP_Inundated="",CWPH=""),"",CWPH*12+CWP_Inundated*12) ->  | N131: inches
D133: H) Width of Water Quality Screen Opening (Wopening) | L133: Wopening = | M133: =IF(OR(CWP_TotalScreenArea="",CWPHTR=""),"",MAX(CWP_TotalScreenArea/CWPHTR,12)) ->  | N133: inches | O133: =IF(OR(CWP_TotalScreenArea="",CWPHTR=""),"",IF(CWP_TotalScreenArea/CWPHTR>=12,"","VALUE LESS THAN RECOMMENDED MIN. WIDTH.")) -> 
D134: (Minimum of 12 inches is recommended) | O134: =IF(CWPWO_Flag1="","","WIDTH HAS BEEN SET TO 12 INCHES.") -> 
C137: 11. | D137: Overflow Embankment
B138: =IF(T140="","",T140) -> 
D139: A) Describe embankment protection for 100-year and greater overtopping:
D143: B) Slope of Overflow Embankment | L143: Ze = | N143: ft / ft | O143: =IF(OR(CWPZE="",CWPZE>=4),"","TOO STEEP (< 4:1)") -> 
D144: (Horiz. dist. per unit vertical, should not be steeper than 4:1)
C148: 12. | D148: Maintenance Considerations
D150: A) Describe Means of Draining the Pond
C155: 13. | D155: Vegetation
C160: 14. | D160: Access
D162: A) Describe Sediment Removal Procedures
D169: Notes:

Sheet CWC
S1: Worksheet Protected
B2: Design Procedure Form: Constructed Wetland Channel (CWC)
F3: =INTRO!B4 -> UD-BMP (Version 3.07, March 2018) | P3: Sheet 1 of 1
C4: Designer: | BA4: 2.5
C5: Company: | BA5: 3
C6: Date: | E6: =NOW() -> 2018-04-16T10:31:13.970 | BA6: 3.5
C7: Project: | BA7: 4
C8: Location: | BA8: 4.5
BA9: 5
BA10: 5.5
C11: 1. | D11: Design Discharge | BA11: 6
BA12: 6.5
D13: A) 2-Year Design Discharge | K13: Q2 = | M13: cfs | BA13: 7
BA14: 7.5
D15: B) 100-Year Design Discharge | K15: Q100 = | M15: cfs | N15: =IF(OR(CWC_Q100="",CWC_Q2=""),"",IF(CWC_Q100>=CWC_Q2,"","Q100 SMALLER THAN Q2")) ->  | BA15: 8
C18: 2. | D18: Channel Geometry (New Channel - No Wetland Veg. in Bottom) | K18: =IF(CWC_D2OLD="","",IF(CWC_D2OLD>=1.5,"",IF(CWC_Z>4,"Decreasing Z may achieve mature channel depth criteria",""))) -> 
D19: Channel Side Slopes (Z = 2.5 min., horiz. distance per unit vertical) | K19: Z = | M19: (H:V) | N19: =IF(CWC_Z="","",IF(CWC_Z>=2.5,"","TOO SMALL, Z < 2 .5")) -> 
C22: 3. | D22: Longitudinal Slope (Based on Manning's n for the mature channel | K22: S = | M22: ft / ft
D23: so as not to exceed the maximum given velocity)
C26: 4. | D26: Channel Capacity | L26: New 2-Yr. | N26: Mature 2-Yr.
D27: (Based on Manning's n = 0.0018 * D2 ^ 2 - 0.0206 * D2 + 0.099 for D < 5, | L27: Channel | N27: Channel
D28: and Manning's n = 0.0001 * Y ^ 2 - 0.0025 * Y + 0.05 for D > 5) | K28: D2 = | M28: feet | O28: =IF(CWC_D2OLD="","feet",IF(CWC_D2OLD>=1.5,"feet","TOO SMALL")) -> feet
C29: =IF(CWC_D2OLD="","",IF(CWC_D2OLD>=1.5,"","MATURE CHANNEL TOO SHALLOW, DECREASE SLOPE TO CORRECT.")) ->  | K29: B2 = | M29: feet | O29: feet
C30: =IF(CWC_V2OLD="","",IF(CWC_V2OLD<=2,"","MATURE CHANNEL V2 TOO HIGH, DECREASE SLOPE TO CORRECT.")) ->  | K30: T2 = | M30: feet | O30: feet
D31: A) Calculated channel geometry required to maintain the design | K31: V2 = | M31: fps | O31: =IF(CWC_V2OLD="","fps",IF(CWC_V2OLD>2,"TOO LARGE","fps")) -> fps
D32: discharge during a 2-year event with newly established and | K32: n2 =
D33: mature vegetation. Calculated resulting flow velocities for mature | K33: Froude2 =
D34: condition should be kept to 2 fps or less for the 2-year flow.
L35: New 100-Yr. | N35: Mature 100-Yr.
D36: B) Geometry and velocity to use for the 100-year discharge: | L36: Channel | N36: Channel
D37: Suggest the design for a 100-year capacity channel follow the | K37: D100 = | M37: feet | O37: feet
D38: guidance contained in the Major Drainage Chapter of Volume One. | K38: B100 = | M38: feet | O38: feet
D39: of the USDCM, or through the use of the UD-CHANNELS workbook. | K39: T100 = | M39: feet | O39: feet
K40: V100 = | M40: fps | O40: fps
D41: =IF(CWC_D100OLD="",""," 100-Year depth with 1-foot freeboard is "&ROUND(CWC_D100OLD+1,1)&" feet.") ->  | K41: n100 =
D42: =IF(CWC_D100OLD="",""," 100-Year top width with 1-foot freeboard is "&ROUND(CWC_T100OLD+2*CWC_Z,1)&" feet. ") ->  | K42: Froude100 =
C45: 5. | D45: Grade Control Structures: Number required
C48: 6. | D48: Toe Protection
D49: =IF(CWC_B2NEW=""," Depth of toe protection below the invert of the channel (min. 3 feet).",IF(6*CWC_Z<=CWC_B2NEW," Depth of toe protection below the invert of the channel (min. 3 feet)."," Due to narrow channel bottom, provide soil riprap across width.")) -> Depth of toe protection below the invert of the channel (min. 3 feet). | M49: =IF(CWC_B2NEW="","feet",IF(6*CWC_Z<=CWC_B2NEW,"feet"," soil riprap thickness (feet)")) -> feet
L50: =IF(CWC_TOE="","",IF(M49="feet",IF(CWC_TOE<3,"TOO SMALL (<3')",""),"")) -> 
C52: 7. | D52: Vegetation
C61: 8. | D61: Maintenance Access: Describe access along channel.
D65: Notes:

Sheet PPS
S1: Worksheet Protected
B2: Design Procedure Form: Permeable Pavement Systems (PPS)
G3: =INTRO!B4 -> UD-BMP (Version 3.07, March 2018) | O3: Sheet 1 of 2
C4: Designer:
C5: Company:
C6: Date: | E6: =NOW() -> 2018-04-16T10:31:13.970
C7: Project:
C8: Location:
C11: 1. | D11: Type of Permeable Pavement Section
D13: A) What type of section of permeable pavement is used?
D14: (Based on the land use and activities, proximity to adjacent
D15: structures and soil characteristics.)
D17: B) What type of wearing course?
C25: 2. | D25: Required Storage Volume
D27: A) Effective Imperviousness of Area Tributary to Permeable Pavement, Ia | K27: Ia = | M27: %
D29: B) Tributary Area's Imperviousness Ratio (I = Ia / 100) | K29: i = | L29: =IF(PPSIA="","",PPSIA/100) -> 
D31: C) Tributary Watershed Area | K31: ATotal = | M31: sq ft
D32: (including area of permeable pavement system)
D34: D) Area of Permeable Pavement System | K34: APPS = | M34: sq ft
D35: =IF(OR(PPSATRIB="",PPSIA="")," (Maximum recommended impervious tributary ratio is 2.0)"," (Minimum recommended permeable pavement area = "&ROUND(PPSATRIB/(1+2/PPSI),0)&" sq ft)") -> (Maximum recommended impervious tributary ratio is 2.0)
D37: E) Impervious Tributary Ratio | K37: RT = | L37: =IF(OR(PPSIA="",PPSATRIB="",PPSAPPS=""),"",((PPSATRIB-PPSAPPS)*PPSI)/PPSAPPS) ->  | N37: =IF(OR(PPSTR="",PPSTR<=2),"","IMPERVIOUS TRIBUTARY RATIO EXCEEDS 2.0") -> 
D38: (Contributing Imperviuos Area / Permeable Pavement Ratio)
D40: F) Water Quality Capture Volume (WQCV) Based on 12-hour Drain Time | K40: WQCV = | L40: =IF(OR(PPSIA="",PPSATRIB=""),"",((0.8*(0.91*(PPSI^3)-1.19*(PPSI^2)+0.78*PPSI))/12)*PPSATRIB) ->  | M40: cu ft
D41: (WQCV = (0.8 * (0.91 * i3 - 1.19 * i2 + 0.78 * i) / 12) * Area)
D43: G) Is flood control volume being added?
N44: =IF(PPS_FloodControl_Button="","","Provide overflow to carry runoff") -> 
N45: =IF(PPS_FloodControl_Button="","","directly into the reservoir layer to") -> 
N46: =IF(PPS_FloodControl_Button="","","ensure use of flood control volume") -> 
D47: H) Total Volume Needed | K47: VTotal = | M47: cu ft | N47: =IF(PPS_FloodControl_Button="","","regardless of infiltration rates.") -> 
C50: 3. | D50: Depth of Reservoir
D52: A) Minimum Depth of Reservoir | K52: Dmin = | M52: inches | N52: =IF(OR(PPSDMIN="",PPSDMIN>=6),"","LESS THAN MINIMUM RECOMMENDED") -> 
D53: (Minimum recommended depth is 6 inches) | N53: =IF(OR(PPSDMIN="",PPSDMIN>=6),"","DEPTH OF 6 INCHES") -> 
D55: B) Is the slope of the reservoir/subgrade interface equal to 0%?
D60: C) Porosity (Porous Gravel Pavement < 0.3, Others < 0.40) | K60: P = | N60: =IF(OR(PPS_WearingCourse_Button="",PPSP=""),"", IF(PPS_WearingCourse_Button=4,IF(PPSP<=0.3,"","Porosity > 0.30"), IF(PPSP<=0.4,"","Porosity > 0.40"))) -> 
D62: D) Slope of the Base Course/Subgrade Interface | K62: S = | M62: ft / ft
D64: =IF(OR(PPSAPPS="",PPSVTOT="",PPSP="",PPSS=""),"E) Length Between Lateral Flow Barriers", "E) Length Between Lateral Flow Barriers (max = "&ROUND((2*PPSVTOT)/(PPSS*PPSAPPS*PPSP),2)&" ft.)") -> E) Length Between Lateral Flow Barriers | K64: L = | M64: ft | N64: =IF(OR(PPSAPPS="",PPSVTOT="",PPSP="",PPSL=""),"",IF(PPSL<ROUND(((2*PPSVTOT)/(PPSS*PPSAPPS*PPSP)),4),"","LENGTH TOO LONG")) -> 
D66: F) Volume Provided Based on Depth of Base Course | K66: V = | L66: =IF(OR(PPSAPPS="",PPSDMIN="",PPS_Slope_Button="",PPSP=""),"", IF(PPS_Slope_Button=1,PPSP*((PPSDMIN-1)/12)*PPSAPPS, IF(OR(PPSS="",PPSL=""),"",MAX(0,PPSP*((PPSDMIN-6*PPSS*PPSL-1)/12)*PPSAPPS)))) ->  | M66: cu ft | N66: =IF(OR(PPSVTOT="",PPSVOL=""),"",IF(PPSVTOT<=PPSVOL,"","VOLUME PROVIDED < TOTAL VOLUME NEEDED")) -> 
D67: Flat or Stepped: V = P * ((Dmin - 1) / 12) * Area | K67: =IF(AND(PPS_Slope_Button=2,PPSVOL<>""),"Volume assumes uniform slope & lateral flow barrier spacing","") -> 
D68: Sloped: V = P * ((Dmin - 6*S*L - 1) / 12) * Area | K68: =IF(AND(PPS_Slope_Button=2,PPSVOL<>""),"Calculate the volume of each cell individually when this varies.","") -> 
C71: 4. | D71: Lateral Flow Barriers
D73: A) Type of Lateral Flow Barriers
D84: B) Number of Permeable Pavement Cells | K84: Cells =
C88: 5. | D88: Perimeter Barrier
D90: A) Is a perimeter barrier provided on all sides of the
D91: pavement system?
D92: (Recommeded for PICP, concrete grid pavement, or for any
D93: no-infiltration section.)
B97: =B2 -> Design Procedure Form: Permeable Pavement Systems (PPS)
O98: Sheet 2 of 2
C99: Designer: | E99: =IF(E4="","",E4) -> 
C100: Company: | E100: =IF(E5="","",E5) -> 
C101: Date: | E101: =IF(E6="","",E6) -> 2018-04-16T10:31:13.970
C102: Project: | E102: =IF(E7="","",E7) -> 
C103: Location: | E103: =IF(E8="","",E8) -> 
C106: 6. | D106: Filter Material and Underdrain System
D108: A) Is the underdrain placed below a 6-inch thick layer of
D109: CDOT Class C filter material? | N109: =IF(PPS_CDOT_Button=1,"CDOT CLASS C FILTER MATERIAL RECOMMENDED","") -> 
D114: B) Diameter of Slotted Pipe (slot dimensions per Table PPs-2)
D119: C) Distance from the Lowest Elevation of the Storage Volume | K119: y = | M119: ft
D120: (i.e. the bottom of the base course to the center of the orifice)
C123: 7. | D123: Impermeable Geomembrane Liner and Geotextile Separator Fabric
D125: A) Is there a minimum 30 mil thick impermeable PVC geomembrane
D126: liner on the bottom and sides of the basin, extending up to the top
D127: of the base course?
D131: B) CDOT Class B Separator Fabric
C137: 8. | D137: Outlet
D138: (Assumes each cell has similar area, subgrade slope, and length
D139: between lateral barriers (unless subgrade is flat). Calculate cells
D140: individually where this varies.)
D142: A) Depth of WQCV in the Reservoir | K142: DWQCV = | L142: =IF(OR(PPS_Outlet_Boolean=1,PPS_Slope_Button="",PPSAPPS="",PPSWQCV="",PPSP=""),"", IF(PPS_Slope_Button=1,(12*PPSWQCV)/(PPSAPPS*PPSP), IF(OR(PPSS="",PPSL=""),"",6*(((2*PPSWQCV)/(PPSAPPS*PPSP))+PPSS*PPSL)))) ->  | M142: inches
D143: (Elevation of the Flood Control Outlet)
D145: B) Diameter of Orifice for 12-hour Drain Time | K145: DOrifice = | L145: =IF(OR(PPS_Outlet_Boolean=1,PPSWQCV="",PPSDLE=""),"",ROUND(((PPSWQCV/(1414*((PPSDLE)^0.41)))^0.5)*16,0)/16) ->  | M145: inches | N145: =IF(OR(PPSDORIF="",PPSDORIF>=0.375),"","MINIMUM ORIFICE SIZE IS 3/8-INCHES") -> 
D146: (Use a minimum orifice diameter of 3/8-inches)
D148: Notes:

Sheet Mean Storm Depth Map
S1: Worksheet Protected
B2: Mean Annual Storm Precipitation Depths, P6 (inches)
